{"text_format":"1","workbook":"xlsx","n_sheets":6,"sheets":["UserInstruction","NamingRules","IRI","ALR","IRI Example","ALR Example"],"not_rendered":{"charts":0,"images":8,"macros":1,"external_links":0,"defined_names":25,"comments":3,"pivot_tables":0},"unopened":[],"bounds":{"document_bytes":16777216,"sheet_cells":100000,"rows_first":2000,"rows_last":500,"rows_between":2000,"halvings":0,"cell_chars":16384,"cell_head_chars":4096},"cells_cut":0,"cells_raw":0,"read":"whole","date_system":"1900"}

{"sheet":"UserInstruction","index":0,"n_rows":95,"n_cols":6,"rows_kept":95,"cut":false,"hidden":false,"merged":[[2,5,4,8]]}
[]
[]
[null,null,null,null,null,"Excel Program for  IRI & ALR Reporting"]
[]
[]
[]
["FAMILIARIZE YOURSELF WITH THE FOLLOWING INSTRUCTIONS PRIOR TO USING THE PROGRAM."]
["1. Macro and ProVAL"]
["This spreadsheet has a macro to calculate the bonus/penalty adjustments for Ride Quality and ALR."]
["This program is designed to use ProVAL 3.4 version data. If you're using a 3.3 version or lower, it is suggested you update your ProVAL."]
["It is recommended that under File - Properties you select the Read Only option."]
["2. Steps for Ride Quality Reporting"]
["The following provides guidance on how to produce an IRI report."]
["  a) while doing ride quality analysis in ProVAL,as in the screen shot shown below, copy IRI table to the clipboard without column names."]
[]
[]
[]
[]
[]
[]
[]
[]
[]
[]
[]
[]
[]
[]
[]
[]
[]
[]
[]
["  b) Click cell B11 on worksheet \"IRI\", and paste data in the clipboard."]
["  c) Make sure all fields under Excluded Areas(column H) and Construction type (column I) are filled out."]
["  d) Complete report header information (contract No. etc…). Add comments if needed."]
["  e) click \"Complete and Format Form\" button located near the top right corner of the form. Wait for the analysis to complete."]
["  f) Check form and make sure the information entered is correct and check calculation if you wish."]
["  g) If for any reason you need to revise information under H \"Excluded Area\" or I \"Type of Construction\" you may do so and hit refresh to redo the analysis."]
["   if an sublot encompasses two construction types, select the construction type with higher number (e.g. both SI and SII types are in one sublot,"]
["   chose SII for that sublot)."]
["  h) If you would like to preview the print out of the form, click \"Print Preview\" button."]
["  i) If you're only doing IRI reporting, you can exit now and Excel will remind you to save (since this template is read-only). "]
[]
["3. Steps for Areas of Localized Roughness Reporting"]
["The following provides instructions on how to produce ALR report."]
["  a) while doing Smooth Assurance analysis in ProVal 3.4,as in the screen shot shown below, copy table to the clipboard without column names."]
[]
[]
[]
[]
[]
[]
[]
[]
[]
[]
[]
[]
[]
[]
[]
[]
[]
["  b) Click cell A10 on the ALR worksheet, and paste data in there from the clipboard."]
["  c) Make sure all fields under column E,F,G and the report header are completed"]
["  d) Check report header information (contract No. etc…). Add comments if needed."]
["  e) Check form and make sure the information entered is correct and check calculation if you wish."]
["  f) click \"Format and Print Preview\" button locates near the top right corner of the form to see a print preview."]
["  h) This template is read-only. YOU MUST SAVE YOUR WORK AS A SEPARATE FILE PRIOR TO EXIT. You'll be prompted when closing the excel workbook."]
["  i) You can exit now and Excel will remind you to save (since this template is read-only). "]
[]
["4. Report Submissions"]
["On day of testing submit the unfiltered profile data in .erd or .ppf format.  Also submit to the Consultant paper reports for Ride Quality"]
["and ALR (short continuous analysis) that are generated by either ProVAL or the software associated with the inertial profiler."]
["After remedial work, if required, retest and re-submit the profile data and smoothness reports."]
["Within five days of testing submit the payment adjustment spreadsheet to the Consultant in .xlsx and .pdf formats and paper copies for Ride Quality and"]
["ALR as generated by ProVAL (if not already submitted earlier)."]
["The Consultant is to review the spreadsheets for accuracy and is to forward the electronic profile data and EXCEL spreadsheets (.xlsx format) to"]
["Technical Standards Branch - trans.constructqa@gov.ab.ca.  The spreadsheet (.pdf) is also to be forwarded to the Project Sponsor or Administrator."]
["     Note that for interim saves, the spreadsheet can be saved in \".xlsm\" format in order to retain the \"payment adjustment\" Macro functionality."]
[]
["5. Reporting Problems"]
[" This Excel is tested under Windows XP operating system and Microsoft Excel 2010 environment. This program may not function properly on other systems."]
["To report any problem with the template, contact the Construction Standards Specialist at jim.gavin@gov.ab.ca."]
[]
["Disclaimer:","Alberta Transportation does not warrant the functions contained in this Template will meet your requirements or that the "]
[null,"operation of the program will be uninterrupted or error-free."]
[null,"It is the user's sole responsibility to check the correctness and accuracy of the data and contents contained in the  report."]
[null,"In no event will Alberta Transportation or its staff be liable for any loss,expense,damage, of any type or nature arising out of the use of ,"]
[null,"or liability to use this excel program, including, but not limited to any lost profit, lost of productivity or any other incidental or consequential damage."]
[]
[]
[]
["Revised on",null,null,"April, 2014"]

{"sheet":"NamingRules","index":1,"n_rows":19,"n_cols":1,"rows_kept":19,"cut":false,"hidden":false,"merged":[]}
["Naming Convention"]
["The following naming rules apply to this EXCEL file and all other files (Erd, Ppf…) submitted to AT."]
["Report files shall be named in the following standardized format:"]
["CN(_RT)_HwyN_CS1(_CS2)_Lane_TTN"]
["Ø  CN: contract number for the project as shown on the cover page of the contract document. It shall contain only numbers and no slash;"]
["Ø  RT: roadway type in abbreviation, use UAR for Urban Approach Roads, PAR for Park Access Roads. The preceding underscore and RT shall be omitted and deleted when testing a Highway."]
["Ø  HwyN: highway number on which roughness test was performed. It shall contain a three-digit number (with leading zeros) followed by a letter if required;"]
["Ø  CS1: control section number where roughness test started, in two digits, include leading zero;"]
["Ø  CS2: control section number where roughness test ended, in two digits, include leading zero. If IP roughness test starts and ends in the same control section, the CS2 and preceding underscore shall be omitted and deleted;"]
["Ø  Lane: location details for the lane tested, which indicates right/left location and sequence number in relation to the yellow line. "]
["Left/right is defined as left/right side with respect to the yellow line as viewed up chainage (increasing chainage). The lane immediately left/right to the yellow line is the first lane and for lanes further from the yellowline, the sequence number increases accordingly. "]
["Ø  TTN: roughness test type and test number. Omit this if it's initial test,  “R” for re-test and “V” for verification test. Succeed test type abbreviation with a one-digit number to indicate test number of occurrence. Use 1 for 1st time, and increase number accordingly for subsequent tests."]
[]
["The following provides typical examples of naming ERD files:"]
["1.       A verification test was performed on Hwy 18 from Control Section 10 to 12 eastbound driving lane for the construction of Contract 131088. The stationing number increases eastbound. The roughness data from IP shall be named as follows:"]
["131088_018_CS10_CS12_R1_V1.xlsx or erd or ppf"]
[]
["2.       A roughness test was performed by the Contractor on Hwy 16 from Control Section 26 to 24 westbound passing lane for the construction of Contract 131099. The stationing number increases eastbound. The roughness data from IP shall be named as follows:"]
["131099_016_CS26_CS24_L1.xlsx or erd or ppf"]

{"sheet":"IRI","index":2,"n_rows":1000,"n_cols":20,"rows_kept":1000,"cut":false,"hidden":false,"merged":[]}
[null,null,null,null,null,"Contract No:",null,"Type of Test:"]
[null,null,null,null,null,"Hwy Number:",null,"Contractor:"]
[null,null,null,null,null,"Control Section:",null,"IP Operator:"]
[null,null,null,null,null,"Lane:",null,"Test Date:\n(mm/dd/yyyy)"]
[null,null,null,null,null,"Direction:",null,"Comments:"]
[null,null,null,null,null,null,null,null,null,null,null,null,null,null,null,"for Type of Test(F5)","for column H","for column I","direction"]
["Ride Quality Bonus/Penalty Summary",null,null,null,null,null,null,null,null,null,null,null,null,null,null,"Acceptance","yes","SI","WB","L1"]
["Appendix B20.a",null,null,null,null,null,null,"Excluded Area?","Type of Cons.","Sublot Payment","SI",null,null,null,null,"Verification","no","SII","EB","L2"]
["Sublot","Station (km)",null,"Length","IRI (m/km)",null,"MIRI","Yes or No?","SI,SII,or SIII","Assessment","SII",null,null,null,null,null,{"$f":"\"\"","v":""},"SIII","SB","L3"]
["Number","Start","End","(m)","Left","Right","(m/km)",null,null,"($)","SIII",null,null,null,null,null,null,null,"NB","L4"]
[null,null,null,null,null,null,{"$f":"ROUND(AVERAGE(E11:F11),2)","v":{"$error":"#DIV/0!"}},"no",null,{"$f":"IF(I11=\"SI\",IF(H11=\"yes\",\"Excluded Area\",IF(G11<0.55,50,IF(G11<0.71,30,IF(G11<1.05,0,IF(G11<1.55,(740-740*G11),-500))))),IF(I11=\"SII\",IF(H11=\"yes\",\"Excluded Area\",IF(G11<0.55,50,IF(G11<0.81,30, IF(G11<1.21,0, IF(G11<1.55,(1090-930*G11),-500))))),IF(H11=\"yes\",\"Excluded Area\",IF(G11<0.55,50,IF(G11<0.81,30, IF(G11<1.55,0, IF(G11<=1.85,(740-490*G11),-500)))))))","v":{"$error":"#DIV/0!"}},null,null,null,null,null,null,null,null,null,"R1"]
[null,null,null,null,null,null,{"$f":"ROUND(AVERAGE(E12:F12),2)","v":{"$error":"#DIV/0!"}},"no",null,{"$f":"IF(I12=\"SI\",IF(H12=\"yes\",\"Excluded Area\",IF(G12<0.55,50,IF(G12<0.71,30,IF(G12<1.05,0,IF(G12<1.55,(740-740*G12),-500))))),IF(I12=\"SII\",IF(H12=\"yes\",\"Excluded Area\",IF(G12<0.55,50,IF(G12<0.81,30, IF(G12<1.21,0, IF(G12<1.55,(1090-930*G12),-500))))),IF(H12=\"yes\",\"Excluded Area\",IF(G12<0.55,50,IF(G12<0.81,30, IF(G12<1.55,0, IF(G12<=1.85,(740-490*G12),-500)))))))","v":{"$error":"#DIV/0!"}},null,null,null,null,null,null,null,null,null,"R2"]
[null,null,null,null,null,null,{"$error":"#DIV/0!"},"no",null,{"$error":"#DIV/0!"},null,null,null,null,null,null,null,null,null,"R3"]
[null,null,null,null,null,null,{"$error":"#DIV/0!"},"no",null,{"$error":"#DIV/0!"},null,null,null,null,null,null,null,null,null,"R4"]
[null,null,null,null,null,null,{"$error":"#DIV/0!"},"no",null,{"$error":"#DIV/0!"}]
[null,null,null,null,null,null,{"$error":"#DIV/0!"},"no",null,{"$error":"#DIV/0!"}]
[null,null,null,null,null,null,{"$error":"#DIV/0!"},"no",null,{"$error":"#DIV/0!"}]
[null,null,null,null,null,null,{"$error":"#DIV/0!"},"no",null,{"$error":"#DIV/0!"}]
[null,null,null,null,null,null,{"$error":"#DIV/0!"},"no",null,{"$error":"#DIV/0!"}]
[null,null,null,null,null,null,{"$error":"#DIV/0!"},"no",null,{"$error":"#DIV/0!"}]
[null,null,null,null,null,null,{"$error":"#DIV/0!"},"no",null,{"$error":"#DIV/0!"}]
[null,null,null,null,null,null,{"$error":"#DIV/0!"},"no",null,{"$error":"#DIV/0!"}]
[null,null,null,null,null,null,{"$error":"#DIV/0!"},"no",null,{"$error":"#DIV/0!"}]
[null,null,null,null,null,null,{"$error":"#DIV/0!"},"no",null,{"$error":"#DIV/0!"}]
[null,null,null,null,null,null,{"$error":"#DIV/0!"},"no",null,{"$error":"#DIV/0!"}]
[null,null,null,null,null,null,{"$error":"#DIV/0!"},"no",null,{"$error":"#DIV/0!"}]
[null,null,null,null,null,null,{"$error":"#DIV/0!"},"no",null,{"$error":"#DIV/0!"}]
[null,null,null,null,null,null,{"$error":"#DIV/0!"},"no",null,{"$error":"#DIV/0!"}]
[null,null,null,null,null,null,{"$error":"#DIV/0!"},"no",null,{"$error":"#DIV/0!"}]
[null,null,null,null,null,null,{"$error":"#DIV/0!"},"no",null,{"$error":"#DIV/0!"}]
[null,null,null,null,null,null,{"$error":"#DIV/0!"},"no",null,{"$error":"#DIV/0!"}]
[null,null,null,null,null,null,{"$error":"#DIV/0!"},"no",null,{"$error":"#DIV/0!"}]
[null,null,null,null,null,null,{"$error":"#DIV/0!"},"no",null,{"$error":"#DIV/0!"}]
[null,null,null,null,null,null,{"$error":"#DIV/0!"},"no",null,{"$error":"#DIV/0!"},null,null,null,null,null,"Confirm that the above table is contained within your contact.  Some contracts with the 2013 version are still "]
[null,null,null,null,null,null,{"$error":"#DIV/0!"},"no",null,{"$error":"#DIV/0!"},null,null,null,null,null,"to be constructed in 2014 and later."]
[null,null,null,null,null,null,{"$error":"#DIV/0!"},"no",null,{"$error":"#DIV/0!"}]
[null,null,null,null,null,null,{"$error":"#DIV/0!"},"no",null,{"$error":"#DIV/0!"},null,null,null,null,null,"Note, reject sublots are identified in this spreadsheet with a payment assessment of -$500."]
[null,null,null,null,null,null,{"$error":"#DIV/0!"},"no",null,{"$error":"#DIV/0!"},null,null,null,null,null,"Consultant is to review whether remedial work is required (and sublot retested) or if sublot can be accepted with -$500 assessment."]
[null,null,null,null,null,null,{"$error":"#DIV/0!"},"no",null,{"$error":"#DIV/0!"}]
[null,null,null,null,null,null,{"$error":"#DIV/0!"},"no",null,{"$error":"#DIV/0!"}]
[null,null,null,null,null,null,{"$error":"#DIV/0!"},"no",null,{"$error":"#DIV/0!"}]
[null,null,null,null,null,null,{"$error":"#DIV/0!"},"no",null,{"$error":"#DIV/0!"}]
[null,null,null,null,null,null,{"$error":"#DIV/0!"},"no",null,{"$error":"#DIV/0!"}]
[null,null,null,null,null,null,{"$error":"#DIV/0!"},"no",null,{"$error":"#DIV/0!"}]
[null,null,null,null,null,null,{"$error":"#DIV/0!"},"no",null,{"$error":"#DIV/0!"}]
[null,null,null,null,null,null,{"$error":"#DIV/0!"},"no",null,{"$error":"#DIV/0!"}]
[null,null,null,null,null,null,{"$error":"#DIV/0!"},"no",null,{"$error":"#DIV/0!"}]
[null,null,null,null,null,null,{"$error":"#DIV/0!"},"no",null,{"$error":"#DIV/0!"}]
[null,null,null,null,null,null,{"$error":"#DIV/0!"},"no",null,{"$error":"#DIV/0!"}]
[null,null,null,null,null,null,{"$error":"#DIV/0!"},"no",null,{"$error":"#DIV/0!"}]
[null,null,null,null,null,null,{"$error":"#DIV/0!"},"no",null,{"$error":"#DIV/0!"}]
[null,null,null,null,null,null,{"$error":"#DIV/0!"},"no",null,{"$error":"#DIV/0!"}]
[null,null,null,null,null,null,{"$error":"#DIV/0!"},"no",null,{"$error":"#DIV/0!"}]
[null,null,null,null,null,null,{"$error":"#DIV/0!"},"no",null,{"$error":"#DIV/0!"}]
[null,null,null,null,null,null,{"$error":"#DIV/0!"},"no",null,{"$error":"#DIV/0!"}]
[null,null,null,null,null,null,{"$error":"#DIV/0!"},"no",null,{"$error":"#DIV/0!"}]
[null,null,null,null,null,null,{"$error":"#DIV/0!"},"no",null,{"$error":"#DIV/0!"}]
[null,null,null,null,null,null,{"$error":"#DIV/0!"},"no",null,{"$error":"#DIV/0!"}]
[null,null,null,null,null,null,{"$error":"#DIV/0!"},"no",null,{"$error":"#DIV/0!"}]
[null,null,null,null,null,null,{"$error":"#DIV/0!"},"no",null,{"$error":"#DIV/0!"}]
[null,null,null,null,null,null,{"$error":"#DIV/0!"},"no",null,{"$error":"#DIV/0!"}]
[null,null,null,null,null,null,{"$error":"#DIV/0!"},"no",null,{"$error":"#DIV/0!"}]
[null,null,null,null,null,null,{"$error":"#DIV/0!"},"no",null,{"$error":"#DIV/0!"}]
[null,null,null,null,null,null,{"$error":"#DIV/0!"},"no",null,{"$error":"#DIV/0!"}]
[null,null,null,null,null,null,{"$error":"#DIV/0!"},"no",null,{"$error":"#DIV/0!"}]
[null,null,null,null,null,null,{"$error":"#DIV/0!"},"no",null,{"$error":"#DIV/0!"}]
[null,null,null,null,null,null,{"$error":"#DIV/0!"},"no",null,{"$error":"#DIV/0!"}]
[null,null,null,null,null,null,{"$error":"#DIV/0!"},"no",null,{"$error":"#DIV/0!"}]
[null,null,null,null,null,null,{"$error":"#DIV/0!"},"no",null,{"$error":"#DIV/0!"}]
[null,null,null,null,null,null,{"$error":"#DIV/0!"},"no",null,{"$error":"#DIV/0!"}]
[null,null,null,null,null,null,{"$error":"#DIV/0!"},"no",null,{"$error":"#DIV/0!"}]
[null,null,null,null,null,null,{"$error":"#DIV/0!"},"no",null,{"$error":"#DIV/0!"}]
[null,null,null,null,null,null,{"$error":"#DIV/0!"},"no",null,{"$error":"#DIV/0!"}]
[null,null,null,null,null,null,{"$error":"#DIV/0!"},"no",null,{"$error":"#DIV/0!"}]
[null,null,null,null,null,null,{"$error":"#DIV/0!"},"no",null,{"$error":"#DIV/0!"}]
[null,null,null,null,null,null,{"$f":"ROUND(AVERAGE(E76:F76),2)","v":{"$error":"#DIV/0!"}},"no",null,{"$f":"IF(I76=\"SI\",IF(H76=\"yes\",\"Excluded Area\",IF(G76<0.55,50,IF(G76<0.71,30,IF(G76<1.05,0,IF(G76<1.55,(740-740*G76),-500))))),IF(I76=\"SII\",IF(H76=\"yes\",\"Excluded Area\",IF(G76<0.55,50,IF(G76<0.81,30, IF(G76<1.21,0, IF(G76<1.55,(1090-930*G76),-500))))),IF(H76=\"yes\",\"Excluded Area\",IF(G76<0.55,50,IF(G76<0.81,30, IF(G76<1.55,0, IF(G76<=1.85,(740-490*G76),-500)))))))","v":{"$error":"#DIV/0!"}}]
[null,null,null,null,null,null,{"$error":"#DIV/0!"},"no",null,{"$error":"#DIV/0!"}]
[null,null,null,null,null,null,{"$error":"#DIV/0!"},"no",null,{"$error":"#DIV/0!"}]
[null,null,null,null,null,null,{"$error":"#DIV/0!"},"no",null,{"$error":"#DIV/0!"}]
[null,null,null,null,null,null,{"$error":"#DIV/0!"},"no",null,{"$error":"#DIV/0!"}]
[null,null,null,null,null,null,{"$error":"#DIV/0!"},"no",null,{"$error":"#DIV/0!"}]
[null,null,null,null,null,null,{"$error":"#DIV/0!"},"no",null,{"$error":"#DIV/0!"}]
[null,null,null,null,null,null,{"$error":"#DIV/0!"},"no",null,{"$error":"#DIV/0!"}]
[null,null,null,null,null,null,{"$error":"#DIV/0!"},"no",null,{"$error":"#DIV/0!"}]
[null,null,null,null,null,null,{"$error":"#DIV/0!"},"no",null,{"$error":"#DIV/0!"}]
[null,null,null,null,null,null,{"$error":"#DIV/0!"},"no",null,{"$error":"#DIV/0!"}]
[null,null,null,null,null,null,{"$error":"#DIV/0!"},"no",null,{"$error":"#DIV/0!"}]
[null,null,null,null,null,null,{"$error":"#DIV/0!"},"no",null,{"$error":"#DIV/0!"}]
[null,null,null,null,null,null,{"$error":"#DIV/0!"},"no",null,{"$error":"#DIV/0!"}]
[null,null,null,null,null,null,{"$error":"#DIV/0!"},"no",null,{"$error":"#DIV/0!"}]
[null,null,null,null,null,null,{"$error":"#DIV/0!"},"no",null,{"$error":"#DIV/0!"}]
[null,null,null,null,null,null,{"$error":"#DIV/0!"},"no",null,{"$error":"#DIV/0!"}]
[null,null,null,null,null,null,{"$error":"#DIV/0!"},"no",null,{"$error":"#DIV/0!"}]
[null,null,null,null,null,null,{"$error":"#DIV/0!"},"no",null,{"$error":"#DIV/0!"}]
[null,null,null,null,null,null,{"$error":"#DIV/0!"},"no",null,{"$error":"#DIV/0!"}]
[null,null,null,null,null,null,{"$error":"#DIV/0!"},"no",null,{"$error":"#DIV/0!"}]
[null,null,null,null,null,null,{"$error":"#DIV/0!"},"no",null,{"$error":"#DIV/0!"}]
[null,null,null,null,null,null,{"$error":"#DIV/0!"},"no",null,{"$error":"#DIV/0!"}]
[null,null,null,null,null,null,{"$error":"#DIV/0!"},"no",null,{"$error":"#DIV/0!"}]
[null,null,null,null,null,null,{"$error":"#DIV/0!"},"no",null,{"$error":"#DIV/0!"}]
[null,null,null,null,null,null,{"$error":"#DIV/0!"},"no",null,{"$error":"#DIV/0!"}]
[null,null,null,null,null,null,{"$error":"#DIV/0!"},"no",null,{"$error":"#DIV/0!"}]
[null,null,null,null,null,null,{"$error":"#DIV/0!"},"no",null,{"$error":"#DIV/0!"}]
[null,null,null,null,null,null,{"$error":"#DIV/0!"},"no",null,{"$error":"#DIV/0!"}]
[null,null,null,null,null,null,{"$error":"#DIV/0!"},"no",null,{"$error":"#DIV/0!"}]
[null,null,null,null,null,null,{"$error":"#DIV/0!"},"no",null,{"$error":"#DIV/0!"}]
[null,null,null,null,null,null,{"$error":"#DIV/0!"},"no",null,{"$error":"#DIV/0!"}]
[null,null,null,null,null,null,{"$error":"#DIV/0!"},"no",null,{"$error":"#DIV/0!"}]
[null,null,null,null,null,null,{"$error":"#DIV/0!"},"no",null,{"$error":"#DIV/0!"}]
[null,null,null,null,null,null,{"$error":"#DIV/0!"},"no",null,{"$error":"#DIV/0!"}]
[null,null,null,null,null,null,{"$error":"#DIV/0!"},"no",null,{"$error":"#DIV/0!"}]
[null,null,null,null,null,null,{"$error":"#DIV/0!"},"no",null,{"$error":"#DIV/0!"}]
[null,null,null,null,null,null,{"$error":"#DIV/0!"},"no",null,{"$error":"#DIV/0!"}]
[null,null,null,null,null,null,{"$error":"#DIV/0!"},"no",null,{"$error":"#DIV/0!"}]
[null,null,null,null,null,null,{"$error":"#DIV/0!"},"no",null,{"$error":"#DIV/0!"}]
[null,null,null,null,null,null,{"$error":"#DIV/0!"},"no",null,{"$error":"#DIV/0!"}]
[null,null,null,null,null,null,{"$error":"#DIV/0!"},"no",null,{"$error":"#DIV/0!"}]
[null,null,null,null,null,null,{"$error":"#DIV/0!"},"no",null,{"$error":"#DIV/0!"}]
[null,null,null,null,null,null,{"$error":"#DIV/0!"},"no",null,{"$error":"#DIV/0!"}]
[null,null,null,null,null,null,{"$error":"#DIV/0!"},"no",null,{"$error":"#DIV/0!"}]
[null,null,null,null,null,null,{"$error":"#DIV/0!"},"no",null,{"$error":"#DIV/0!"}]
[null,null,null,null,null,null,{"$error":"#DIV/0!"},"no",null,{"$error":"#DIV/0!"}]
[null,null,null,null,null,null,{"$error":"#DIV/0!"},"no",null,{"$error":"#DIV/0!"}]
[null,null,null,null,null,null,{"$error":"#DIV/0!"},"no",null,{"$error":"#DIV/0!"}]
[null,null,null,null,null,null,{"$error":"#DIV/0!"},"no",null,{"$error":"#DIV/0!"}]
[null,null,null,null,null,null,{"$error":"#DIV/0!"},"no",null,{"$error":"#DIV/0!"}]
[null,null,null,null,null,null,{"$error":"#DIV/0!"},"no",null,{"$error":"#DIV/0!"}]
[null,null,null,null,null,null,{"$error":"#DIV/0!"},"no",null,{"$error":"#DIV/0!"}]
[null,null,null,null,null,null,{"$error":"#DIV/0!"},"no",null,{"$error":"#DIV/0!"}]
[null,null,null,null,null,null,{"$error":"#DIV/0!"},"no",null,{"$error":"#DIV/0!"}]
[null,null,null,null,null,null,{"$error":"#DIV/0!"},"no",null,{"$error":"#DIV/0!"}]
[null,null,null,null,null,null,{"$error":"#DIV/0!"},"no",null,{"$error":"#DIV/0!"}]
[null,null,null,null,null,null,{"$error":"#DIV/0!"},"no",null,{"$error":"#DIV/0!"}]
[null,null,null,null,null,null,{"$error":"#DIV/0!"},"no",null,{"$error":"#DIV/0!"}]
[null,null,null,null,null,null,{"$error":"#DIV/0!"},"no",null,{"$error":"#DIV/0!"}]
[null,null,null,null,null,null,{"$error":"#DIV/0!"},"no",null,{"$error":"#DIV/0!"}]
[null,null,null,null,null,null,{"$error":"#DIV/0!"},"no",null,{"$error":"#DIV/0!"}]
[null,null,null,null,null,null,{"$error":"#DIV/0!"},"no",null,{"$error":"#DIV/0!"}]
[null,null,null,null,null,null,{"$error":"#DIV/0!"},"no",null,{"$error":"#DIV/0!"}]
[null,null,null,null,null,null,{"$f":"ROUND(AVERAGE(E140:F140),2)","v":{"$error":"#DIV/0!"}},"no",null,{"$f":"IF(I140=\"SI\",IF(H140=\"yes\",\"Excluded Area\",IF(G140<0.55,50,IF(G140<0.71,30,IF(G140<1.05,0,IF(G140<1.55,(740-740*G140),-500))))),IF(I140=\"SII\",IF(H140=\"yes\",\"Excluded Area\",IF(G140<0.55,50,IF(G140<0.81,30, IF(G140<1.21,0, IF(G140<1.55,(1090-930*G140),-500))))),IF(H140=\"yes\",\"Excluded Area\",IF(G140<0.55,50,IF(G140<0.81,30, IF(G140<1.55,0, IF(G140<=1.85,(740-490*G140),-500)))))))","v":{"$error":"#DIV/0!"}}]
[null,null,null,null,null,null,{"$error":"#DIV/0!"},"no",null,{"$error":"#DIV/0!"}]
[null,null,null,null,null,null,{"$error":"#DIV/0!"},"no",null,{"$error":"#DIV/0!"}]
[null,null,null,null,null,null,{"$error":"#DIV/0!"},"no",null,{"$error":"#DIV/0!"}]
[null,null,null,null,null,null,{"$error":"#DIV/0!"},"no",null,{"$error":"#DIV/0!"}]
[null,null,null,null,null,null,{"$error":"#DIV/0!"},"no",null,{"$error":"#DIV/0!"}]
[null,null,null,null,null,null,{"$error":"#DIV/0!"},"no",null,{"$error":"#DIV/0!"}]
[null,null,null,null,null,null,{"$error":"#DIV/0!"},"no",null,{"$error":"#DIV/0!"}]
[null,null,null,null,null,null,{"$error":"#DIV/0!"},"no",null,{"$error":"#DIV/0!"}]
[null,null,null,null,null,null,{"$error":"#DIV/0!"},"no",null,{"$error":"#DIV/0!"}]
[null,null,null,null,null,null,{"$error":"#DIV/0!"},"no",null,{"$error":"#DIV/0!"}]
[null,null,null,null,null,null,{"$error":"#DIV/0!"},"no",null,{"$error":"#DIV/0!"}]
[null,null,null,null,null,null,{"$error":"#DIV/0!"},"no",null,{"$error":"#DIV/0!"}]
[null,null,null,null,null,null,{"$error":"#DIV/0!"},"no",null,{"$error":"#DIV/0!"}]
[null,null,null,null,null,null,{"$error":"#DIV/0!"},"no",null,{"$error":"#DIV/0!"}]
[null,null,null,null,null,null,{"$error":"#DIV/0!"},"no",null,{"$error":"#DIV/0!"}]
[null,null,null,null,null,null,{"$error":"#DIV/0!"},"no",null,{"$error":"#DIV/0!"}]
[null,null,null,null,null,null,{"$error":"#DIV/0!"},"no",null,{"$error":"#DIV/0!"}]
[null,null,null,null,null,null,{"$error":"#DIV/0!"},"no",null,{"$error":"#DIV/0!"}]
[null,null,null,null,null,null,{"$error":"#DIV/0!"},"no",null,{"$error":"#DIV/0!"}]
[null,null,null,null,null,null,{"$error":"#DIV/0!"},"no",null,{"$error":"#DIV/0!"}]
[null,null,null,null,null,null,{"$error":"#DIV/0!"},"no",null,{"$error":"#DIV/0!"}]
[null,null,null,null,null,null,{"$error":"#DIV/0!"},"no",null,{"$error":"#DIV/0!"}]
[null,null,null,null,null,null,{"$error":"#DIV/0!"},"no",null,{"$error":"#DIV/0!"}]
[null,null,null,null,null,null,{"$error":"#DIV/0!"},"no",null,{"$error":"#DIV/0!"}]
[null,null,null,null,null,null,{"$error":"#DIV/0!"},"no",null,{"$error":"#DIV/0!"}]
[null,null,null,null,null,null,{"$error":"#DIV/0!"},"no",null,{"$error":"#DIV/0!"}]
[null,null,null,null,null,null,{"$error":"#DIV/0!"},"no",null,{"$error":"#DIV/0!"}]
[null,null,null,null,null,null,{"$error":"#DIV/0!"},"no",null,{"$error":"#DIV/0!"}]
[null,null,null,null,null,null,{"$error":"#DIV/0!"},"no",null,{"$error":"#DIV/0!"}]
[null,null,null,null,null,null,{"$error":"#DIV/0!"},"no",null,{"$error":"#DIV/0!"}]
[null,null,null,null,null,null,{"$error":"#DIV/0!"},"no",null,{"$error":"#DIV/0!"}]
[null,null,null,null,null,null,{"$error":"#DIV/0!"},"no",null,{"$error":"#DIV/0!"}]
[null,null,null,null,null,null,{"$error":"#DIV/0!"},"no",null,{"$error":"#DIV/0!"}]
[null,null,null,null,null,null,{"$error":"#DIV/0!"},"no",null,{"$error":"#DIV/0!"}]
[null,null,null,null,null,null,{"$error":"#DIV/0!"},"no",null,{"$error":"#DIV/0!"}]
[null,null,null,null,null,null,{"$error":"#DIV/0!"},"no",null,{"$error":"#DIV/0!"}]
[null,null,null,null,null,null,{"$error":"#DIV/0!"},"no",null,{"$error":"#DIV/0!"}]
[null,null,null,null,null,null,{"$error":"#DIV/0!"},"no",null,{"$error":"#DIV/0!"}]
[null,null,null,null,null,null,{"$error":"#DIV/0!"},"no",null,{"$error":"#DIV/0!"}]
[null,null,null,null,null,null,{"$error":"#DIV/0!"},"no",null,{"$error":"#DIV/0!"}]
[null,null,null,null,null,null,{"$error":"#DIV/0!"},"no",null,{"$error":"#DIV/0!"}]
[null,null,null,null,null,null,{"$error":"#DIV/0!"},"no",null,{"$error":"#DIV/0!"}]
[null,null,null,null,null,null,{"$error":"#DIV/0!"},"no",null,{"$error":"#DIV/0!"}]
[null,null,null,null,null,null,{"$error":"#DIV/0!"},"no",null,{"$error":"#DIV/0!"}]
[null,null,null,null,null,null,{"$error":"#DIV/0!"},"no",null,{"$error":"#DIV/0!"}]
[null,null,null,null,null,null,{"$error":"#DIV/0!"},"no",null,{"$error":"#DIV/0!"}]
[null,null,null,null,null,null,{"$error":"#DIV/0!"},"no",null,{"$error":"#DIV/0!"}]
[null,null,null,null,null,null,{"$error":"#DIV/0!"},"no",null,{"$error":"#DIV/0!"}]
[null,null,null,null,null,null,{"$error":"#DIV/0!"},"no",null,{"$error":"#DIV/0!"}]
[null,null,null,null,null,null,{"$error":"#DIV/0!"},"no",null,{"$error":"#DIV/0!"}]
[null,null,null,null,null,null,{"$error":"#DIV/0!"},"no",null,{"$error":"#DIV/0!"}]
[null,null,null,null,null,null,{"$error":"#DIV/0!"},"no",null,{"$error":"#DIV/0!"}]
[null,null,null,null,null,null,{"$error":"#DIV/0!"},"no",null,{"$error":"#DIV/0!"}]
[null,null,null,null,null,null,{"$error":"#DIV/0!"},"no",null,{"$error":"#DIV/0!"}]
[null,null,null,null,null,null,{"$error":"#DIV/0!"},"no",null,{"$error":"#DIV/0!"}]
[null,null,null,null,null,null,{"$error":"#DIV/0!"},"no",null,{"$error":"#DIV/0!"}]
[null,null,null,null,null,null,{"$error":"#DIV/0!"},"no",null,{"$error":"#DIV/0!"}]
[null,null,null,null,null,null,{"$error":"#DIV/0!"},"no",null,{"$error":"#DIV/0!"}]
[null,null,null,null,null,null,{"$error":"#DIV/0!"},"no",null,{"$error":"#DIV/0!"}]
[null,null,null,null,null,null,{"$error":"#DIV/0!"},"no",null,{"$error":"#DIV/0!"}]
[null,null,null,null,null,null,{"$error":"#DIV/0!"},"no",null,{"$error":"#DIV/0!"}]
[null,null,null,null,null,null,{"$error":"#DIV/0!"},"no",null,{"$error":"#DIV/0!"}]
[null,null,null,null,null,null,{"$error":"#DIV/0!"},"no",null,{"$error":"#DIV/0!"}]
[null,null,null,null,null,null,{"$f":"ROUND(AVERAGE(E204:F204),2)","v":{"$error":"#DIV/0!"}},"no",null,{"$f":"IF(I204=\"SI\",IF(H204=\"yes\",\"Excluded Area\",IF(G204<0.55,50,IF(G204<0.71,30,IF(G204<1.05,0,IF(G204<1.55,(740-740*G204),-500))))),IF(I204=\"SII\",IF(H204=\"yes\",\"Excluded Area\",IF(G204<0.55,50,IF(G204<0.81,30, IF(G204<1.21,0, IF(G204<1.55,(1090-930*G204),-500))))),IF(H204=\"yes\",\"Excluded Area\",IF(G204<0.55,50,IF(G204<0.81,30, IF(G204<1.55,0, IF(G204<=1.85,(740-490*G204),-500)))))))","v":{"$error":"#DIV/0!"}}]
[null,null,null,null,null,null,{"$error":"#DIV/0!"},"no",null,{"$error":"#DIV/0!"}]
[null,null,null,null,null,null,{"$error":"#DIV/0!"},"no",null,{"$error":"#DIV/0!"}]
[null,null,null,null,null,null,{"$error":"#DIV/0!"},"no",null,{"$error":"#DIV/0!"}]
[null,null,null,null,null,null,{"$error":"#DIV/0!"},"no",null,{"$error":"#DIV/0!"}]
[null,null,null,null,null,null,{"$error":"#DIV/0!"},"no",null,{"$error":"#DIV/0!"}]
[null,null,null,null,null,null,{"$error":"#DIV/0!"},"no",null,{"$error":"#DIV/0!"}]
[null,null,null,null,null,null,{"$error":"#DIV/0!"},"no",null,{"$error":"#DIV/0!"}]
[null,null,null,null,null,null,{"$error":"#DIV/0!"},"no",null,{"$error":"#DIV/0!"}]
[null,null,null,null,null,null,{"$error":"#DIV/0!"},"no",null,{"$error":"#DIV/0!"}]
[null,null,null,null,null,null,{"$error":"#DIV/0!"},"no",null,{"$error":"#DIV/0!"}]
[null,null,null,null,null,null,{"$error":"#DIV/0!"},"no",null,{"$error":"#DIV/0!"}]
[null,null,null,null,null,null,{"$error":"#DIV/0!"},"no",null,{"$error":"#DIV/0!"}]
[null,null,null,null,null,null,{"$error":"#DIV/0!"},"no",null,{"$error":"#DIV/0!"}]
[null,null,null,null,null,null,{"$error":"#DIV/0!"},"no",null,{"$error":"#DIV/0!"}]
[null,null,null,null,null,null,{"$error":"#DIV/0!"},"no",null,{"$error":"#DIV/0!"}]
[null,null,null,null,null,null,{"$error":"#DIV/0!"},"no",null,{"$error":"#DIV/0!"}]
[null,null,null,null,null,null,{"$error":"#DIV/0!"},"no",null,{"$error":"#DIV/0!"}]
[null,null,null,null,null,null,{"$error":"#DIV/0!"},"no",null,{"$error":"#DIV/0!"}]
[null,null,null,null,null,null,{"$error":"#DIV/0!"},"no",null,{"$error":"#DIV/0!"}]
[null,null,null,null,null,null,{"$error":"#DIV/0!"},"no",null,{"$error":"#DIV/0!"}]
[null,null,null,null,null,null,{"$error":"#DIV/0!"},"no",null,{"$error":"#DIV/0!"}]
[null,null,null,null,null,null,{"$error":"#DIV/0!"},"no",null,{"$error":"#DIV/0!"}]
[null,null,null,null,null,null,{"$error":"#DIV/0!"},"no",null,{"$error":"#DIV/0!"}]
[null,null,null,null,null,null,{"$error":"#DIV/0!"},"no",null,{"$error":"#DIV/0!"}]
[null,null,null,null,null,null,{"$error":"#DIV/0!"},"no",null,{"$error":"#DIV/0!"}]
[null,null,null,null,null,null,{"$error":"#DIV/0!"},"no",null,{"$error":"#DIV/0!"}]
[null,null,null,null,null,null,{"$error":"#DIV/0!"},"no",null,{"$error":"#DIV/0!"}]
[null,null,null,null,null,null,{"$error":"#DIV/0!"},"no",null,{"$error":"#DIV/0!"}]
[null,null,null,null,null,null,{"$error":"#DIV/0!"},"no",null,{"$error":"#DIV/0!"}]
[null,null,null,null,null,null,{"$error":"#DIV/0!"},"no",null,{"$error":"#DIV/0!"}]
[null,null,null,null,null,null,{"$error":"#DIV/0!"},"no",null,{"$error":"#DIV/0!"}]
[null,null,null,null,null,null,{"$error":"#DIV/0!"},"no",null,{"$error":"#DIV/0!"}]
[null,null,null,null,null,null,{"$error":"#DIV/0!"},"no",null,{"$error":"#DIV/0!"}]
[null,null,null,null,null,null,{"$error":"#DIV/0!"},"no",null,{"$error":"#DIV/0!"}]
[null,null,null,null,null,null,{"$error":"#DIV/0!"},"no",null,{"$error":"#DIV/0!"}]
[null,null,null,null,null,null,{"$error":"#DIV/0!"},"no",null,{"$error":"#DIV/0!"}]
[null,null,null,null,null,null,{"$error":"#DIV/0!"},"no",null,{"$error":"#DIV/0!"}]
[null,null,null,null,null,null,{"$error":"#DIV/0!"},"no",null,{"$error":"#DIV/0!"}]
[null,null,null,null,null,null,{"$error":"#DIV/0!"},"no",null,{"$error":"#DIV/0!"}]
[null,null,null,null,null,null,{"$error":"#DIV/0!"},"no",null,{"$error":"#DIV/0!"}]
[null,null,null,null,null,null,{"$error":"#DIV/0!"},"no",null,{"$error":"#DIV/0!"}]
[null,null,null,null,null,null,{"$error":"#DIV/0!"},"no",null,{"$error":"#DIV/0!"}]
[null,null,null,null,null,null,{"$error":"#DIV/0!"},"no",null,{"$error":"#DIV/0!"}]
[null,null,null,null,null,null,{"$error":"#DIV/0!"},"no",null,{"$error":"#DIV/0!"}]
[null,null,null,null,null,null,{"$error":"#DIV/0!"},"no",null,{"$error":"#DIV/0!"}]
[null,null,null,null,null,null,{"$error":"#DIV/0!"},"no",null,{"$error":"#DIV/0!"}]
[null,null,null,null,null,null,{"$error":"#DIV/0!"},"no",null,{"$error":"#DIV/0!"}]
[null,null,null,null,null,null,{"$error":"#DIV/0!"},"no",null,{"$error":"#DIV/0!"}]
[null,null,null,null,null,null,{"$error":"#DIV/0!"},"no",null,{"$error":"#DIV/0!"}]
[null,null,null,null,null,null,{"$error":"#DIV/0!"},"no",null,{"$error":"#DIV/0!"}]
[null,null,null,null,null,null,{"$error":"#DIV/0!"},"no",null,{"$error":"#DIV/0!"}]
[null,null,null,null,null,null,{"$error":"#DIV/0!"},"no",null,{"$error":"#DIV/0!"}]
[null,null,null,null,null,null,{"$error":"#DIV/0!"},"no",null,{"$error":"#DIV/0!"}]
[null,null,null,null,null,null,{"$error":"#DIV/0!"},"no",null,{"$error":"#DIV/0!"}]
[null,null,null,null,null,null,{"$error":"#DIV/0!"},"no",null,{"$error":"#DIV/0!"}]
[null,null,null,null,null,null,{"$error":"#DIV/0!"},"no",null,{"$error":"#DIV/0!"}]
[null,null,null,null,null,null,{"$error":"#DIV/0!"},"no",null,{"$error":"#DIV/0!"}]
[null,null,null,null,null,null,{"$error":"#DIV/0!"},"no",null,{"$error":"#DIV/0!"}]
[null,null,null,null,null,null,{"$error":"#DIV/0!"},"no",null,{"$error":"#DIV/0!"}]
[null,null,null,null,null,null,{"$error":"#DIV/0!"},"no",null,{"$error":"#DIV/0!"}]
[null,null,null,null,null,null,{"$error":"#DIV/0!"},"no",null,{"$error":"#DIV/0!"}]
[null,null,null,null,null,null,{"$error":"#DIV/0!"},"no",null,{"$error":"#DIV/0!"}]
[null,null,null,null,null,null,{"$error":"#DIV/0!"},"no",null,{"$error":"#DIV/0!"}]
[null,null,null,null,null,null,{"$f":"ROUND(AVERAGE(E268:F268),2)","v":{"$error":"#DIV/0!"}},"no",null,{"$f":"IF(I268=\"SI\",IF(H268=\"yes\",\"Excluded Area\",IF(G268<0.55,50,IF(G268<0.71,30,IF(G268<1.05,0,IF(G268<1.55,(740-740*G268),-500))))),IF(I268=\"SII\",IF(H268=\"yes\",\"Excluded Area\",IF(G268<0.55,50,IF(G268<0.81,30, IF(G268<1.21,0, IF(G268<1.55,(1090-930*G268),-500))))),IF(H268=\"yes\",\"Excluded Area\",IF(G268<0.55,50,IF(G268<0.81,30, IF(G268<1.55,0, IF(G268<=1.85,(740-490*G268),-500)))))))","v":{"$error":"#DIV/0!"}}]
[null,null,null,null,null,null,{"$error":"#DIV/0!"},"no",null,{"$error":"#DIV/0!"}]
[null,null,null,null,null,null,{"$error":"#DIV/0!"},"no",null,{"$error":"#DIV/0!"}]
[null,null,null,null,null,null,{"$error":"#DIV/0!"},"no",null,{"$error":"#DIV/0!"}]
[null,null,null,null,null,null,{"$error":"#DIV/0!"},"no",null,{"$error":"#DIV/0!"}]
[null,null,null,null,null,null,{"$error":"#DIV/0!"},"no",null,{"$error":"#DIV/0!"}]
[null,null,null,null,null,null,{"$error":"#DIV/0!"},"no",null,{"$error":"#DIV/0!"}]
[null,null,null,null,null,null,{"$error":"#DIV/0!"},"no",null,{"$error":"#DIV/0!"}]
[null,null,null,null,null,null,{"$error":"#DIV/0!"},"no",null,{"$error":"#DIV/0!"}]
[null,null,null,null,null,null,{"$error":"#DIV/0!"},"no",null,{"$error":"#DIV/0!"}]
[null,null,null,null,null,null,{"$error":"#DIV/0!"},"no",null,{"$error":"#DIV/0!"}]
[null,null,null,null,null,null,{"$error":"#DIV/0!"},"no",null,{"$error":"#DIV/0!"}]
[null,null,null,null,null,null,{"$error":"#DIV/0!"},"no",null,{"$error":"#DIV/0!"}]
[null,null,null,null,null,null,{"$error":"#DIV/0!"},"no",null,{"$error":"#DIV/0!"}]
[null,null,null,null,null,null,{"$error":"#DIV/0!"},"no",null,{"$error":"#DIV/0!"}]
[null,null,null,null,null,null,{"$error":"#DIV/0!"},"no",null,{"$error":"#DIV/0!"}]
[null,null,null,null,null,null,{"$error":"#DIV/0!"},"no",null,{"$error":"#DIV/0!"}]
[null,null,null,null,null,null,{"$error":"#DIV/0!"},"no",null,{"$error":"#DIV/0!"}]
[null,null,null,null,null,null,{"$error":"#DIV/0!"},"no",null,{"$error":"#DIV/0!"}]
[null,null,null,null,null,null,{"$error":"#DIV/0!"},"no",null,{"$error":"#DIV/0!"}]
[null,null,null,null,null,null,{"$error":"#DIV/0!"},"no",null,{"$error":"#DIV/0!"}]
[null,null,null,null,null,null,{"$error":"#DIV/0!"},"no",null,{"$error":"#DIV/0!"}]
[null,null,null,null,null,null,{"$error":"#DIV/0!"},"no",null,{"$error":"#DIV/0!"}]
[null,null,null,null,null,null,{"$error":"#DIV/0!"},"no",null,{"$error":"#DIV/0!"}]
[null,null,null,null,null,null,{"$error":"#DIV/0!"},"no",null,{"$error":"#DIV/0!"}]
[null,null,null,null,null,null,{"$error":"#DIV/0!"},"no",null,{"$error":"#DIV/0!"}]
[null,null,null,null,null,null,{"$error":"#DIV/0!"},"no",null,{"$error":"#DIV/0!"}]
[null,null,null,null,null,null,{"$error":"#DIV/0!"},"no",null,{"$error":"#DIV/0!"}]
[null,null,null,null,null,null,{"$error":"#DIV/0!"},"no",null,{"$error":"#DIV/0!"}]
[null,null,null,null,null,null,{"$error":"#DIV/0!"},"no",null,{"$error":"#DIV/0!"}]
[null,null,null,null,null,null,{"$error":"#DIV/0!"},"no",null,{"$error":"#DIV/0!"}]
[null,null,null,null,null,null,{"$error":"#DIV/0!"},"no",null,{"$error":"#DIV/0!"}]
[null,null,null,null,null,null,{"$error":"#DIV/0!"},"no",null,{"$error":"#DIV/0!"}]
[null,null,null,null,null,null,{"$error":"#DIV/0!"},"no",null,{"$error":"#DIV/0!"}]
[null,null,null,null,null,null,{"$error":"#DIV/0!"},"no",null,{"$error":"#DIV/0!"}]
[null,null,null,null,null,null,{"$error":"#DIV/0!"},"no",null,{"$error":"#DIV/0!"}]
[null,null,null,null,null,null,{"$error":"#DIV/0!"},"no",null,{"$error":"#DIV/0!"}]
[null,null,null,null,null,null,{"$error":"#DIV/0!"},"no",null,{"$error":"#DIV/0!"}]
[null,null,null,null,null,null,{"$error":"#DIV/0!"},"no",null,{"$error":"#DIV/0!"}]
[null,null,null,null,null,null,{"$error":"#DIV/0!"},"no",null,{"$error":"#DIV/0!"}]
[null,null,null,null,null,null,{"$error":"#DIV/0!"},"no",null,{"$error":"#DIV/0!"}]
[null,null,null,null,null,null,{"$error":"#DIV/0!"},"no",null,{"$error":"#DIV/0!"}]
[null,null,null,null,null,null,{"$error":"#DIV/0!"},"no",null,{"$error":"#DIV/0!"}]
[null,null,null,null,null,null,{"$error":"#DIV/0!"},"no",null,{"$error":"#DIV/0!"}]
[null,null,null,null,null,null,{"$error":"#DIV/0!"},"no",null,{"$error":"#DIV/0!"}]
[null,null,null,null,null,null,{"$error":"#DIV/0!"},"no",null,{"$error":"#DIV/0!"}]
[null,null,null,null,null,null,{"$error":"#DIV/0!"},"no",null,{"$error":"#DIV/0!"}]
[null,null,null,null,null,null,{"$error":"#DIV/0!"},"no",null,{"$error":"#DIV/0!"}]
[null,null,null,null,null,null,{"$error":"#DIV/0!"},"no",null,{"$error":"#DIV/0!"}]
[null,null,null,null,null,null,{"$error":"#DIV/0!"},"no",null,{"$error":"#DIV/0!"}]
[null,null,null,null,null,null,{"$error":"#DIV/0!"},"no",null,{"$error":"#DIV/0!"}]
[null,null,null,null,null,null,{"$error":"#DIV/0!"},"no",null,{"$error":"#DIV/0!"}]
[null,null,null,null,null,null,{"$error":"#DIV/0!"},"no",null,{"$error":"#DIV/0!"}]
[null,null,null,null,null,null,{"$error":"#DIV/0!"},"no",null,{"$error":"#DIV/0!"}]
[null,null,null,null,null,null,{"$error":"#DIV/0!"},"no",null,{"$error":"#DIV/0!"}]
[null,null,null,null,null,null,{"$error":"#DIV/0!"},"no",null,{"$error":"#DIV/0!"}]
[null,null,null,null,null,null,{"$error":"#DIV/0!"},"no",null,{"$error":"#DIV/0!"}]
[null,null,null,null,null,null,{"$error":"#DIV/0!"},"no",null,{"$error":"#DIV/0!"}]
[null,null,null,null,null,null,{"$error":"#DIV/0!"},"no",null,{"$error":"#DIV/0!"}]
[null,null,null,null,null,null,{"$error":"#DIV/0!"},"no",null,{"$error":"#DIV/0!"}]
[null,null,null,null,null,null,{"$error":"#DIV/0!"},"no",null,{"$error":"#DIV/0!"}]
[null,null,null,null,null,null,{"$error":"#DIV/0!"},"no",null,{"$error":"#DIV/0!"}]
[null,null,null,null,null,null,{"$error":"#DIV/0!"},"no",null,{"$error":"#DIV/0!"}]
[null,null,null,null,null,null,{"$error":"#DIV/0!"},"no",null,{"$error":"#DIV/0!"}]
[null,null,null,null,null,null,{"$f":"ROUND(AVERAGE(E332:F332),2)","v":{"$error":"#DIV/0!"}},"no",null,{"$f":"IF(I332=\"SI\",IF(H332=\"yes\",\"Excluded Area\",IF(G332<0.55,50,IF(G332<0.71,30,IF(G332<1.05,0,IF(G332<1.55,(740-740*G332),-500))))),IF(I332=\"SII\",IF(H332=\"yes\",\"Excluded Area\",IF(G332<0.55,50,IF(G332<0.81,30, IF(G332<1.21,0, IF(G332<1.55,(1090-930*G332),-500))))),IF(H332=\"yes\",\"Excluded Area\",IF(G332<0.55,50,IF(G332<0.81,30, IF(G332<1.55,0, IF(G332<=1.85,(740-490*G332),-500)))))))","v":{"$error":"#DIV/0!"}}]
[null,null,null,null,null,null,{"$error":"#DIV/0!"},"no",null,{"$error":"#DIV/0!"}]
[null,null,null,null,null,null,{"$error":"#DIV/0!"},"no",null,{"$error":"#DIV/0!"}]
[null,null,null,null,null,null,{"$error":"#DIV/0!"},"no",null,{"$error":"#DIV/0!"}]
[null,null,null,null,null,null,{"$error":"#DIV/0!"},"no",null,{"$error":"#DIV/0!"}]
[null,null,null,null,null,null,{"$error":"#DIV/0!"},"no",null,{"$error":"#DIV/0!"}]
[null,null,null,null,null,null,{"$error":"#DIV/0!"},"no",null,{"$error":"#DIV/0!"}]
[null,null,null,null,null,null,{"$error":"#DIV/0!"},"no",null,{"$error":"#DIV/0!"}]
[null,null,null,null,null,null,{"$error":"#DIV/0!"},"no",null,{"$error":"#DIV/0!"}]
[null,null,null,null,null,null,{"$error":"#DIV/0!"},"no",null,{"$error":"#DIV/0!"}]
[null,null,null,null,null,null,{"$error":"#DIV/0!"},"no",null,{"$error":"#DIV/0!"}]
[null,null,null,null,null,null,{"$error":"#DIV/0!"},"no",null,{"$error":"#DIV/0!"}]
[null,null,null,null,null,null,{"$error":"#DIV/0!"},"no",null,{"$error":"#DIV/0!"}]
[null,null,null,null,null,null,{"$error":"#DIV/0!"},"no",null,{"$error":"#DIV/0!"}]
[null,null,null,null,null,null,{"$error":"#DIV/0!"},"no",null,{"$error":"#DIV/0!"}]
[null,null,null,null,null,null,{"$error":"#DIV/0!"},"no",null,{"$error":"#DIV/0!"}]
[null,null,null,null,null,null,{"$error":"#DIV/0!"},"no",null,{"$error":"#DIV/0!"}]
[null,null,null,null,null,null,{"$error":"#DIV/0!"},"no",null,{"$error":"#DIV/0!"}]
[null,null,null,null,null,null,{"$error":"#DIV/0!"},"no",null,{"$error":"#DIV/0!"}]
[null,null,null,null,null,null,{"$error":"#DIV/0!"},"no",null,{"$error":"#DIV/0!"}]
[null,null,null,null,null,null,{"$error":"#DIV/0!"},"no",null,{"$error":"#DIV/0!"}]
[null,null,null,null,null,null,{"$error":"#DIV/0!"},"no",null,{"$error":"#DIV/0!"}]
[null,null,null,null,null,null,{"$error":"#DIV/0!"},"no",null,{"$error":"#DIV/0!"}]
[null,null,null,null,null,null,{"$error":"#DIV/0!"},"no",null,{"$error":"#DIV/0!"}]
[null,null,null,null,null,null,{"$error":"#DIV/0!"},"no",null,{"$error":"#DIV/0!"}]
[null,null,null,null,null,null,{"$error":"#DIV/0!"},"no",null,{"$error":"#DIV/0!"}]
[null,null,null,null,null,null,{"$error":"#DIV/0!"},"no",null,{"$error":"#DIV/0!"}]
[null,null,null,null,null,null,{"$error":"#DIV/0!"},"no",null,{"$error":"#DIV/0!"}]
[null,null,null,null,null,null,{"$error":"#DIV/0!"},"no",null,{"$error":"#DIV/0!"}]
[null,null,null,null,null,null,{"$error":"#DIV/0!"},"no",null,{"$error":"#DIV/0!"}]
[null,null,null,null,null,null,{"$error":"#DIV/0!"},"no",null,{"$error":"#DIV/0!"}]
[null,null,null,null,null,null,{"$error":"#DIV/0!"},"no",null,{"$error":"#DIV/0!"}]
[null,null,null,null,null,null,{"$error":"#DIV/0!"},"no",null,{"$error":"#DIV/0!"}]
[null,null,null,null,null,null,{"$error":"#DIV/0!"},"no",null,{"$error":"#DIV/0!"}]
[null,null,null,null,null,null,{"$error":"#DIV/0!"},"no",null,{"$error":"#DIV/0!"}]
[null,null,null,null,null,null,{"$error":"#DIV/0!"},"no",null,{"$error":"#DIV/0!"}]
[null,null,null,null,null,null,{"$error":"#DIV/0!"},"no",null,{"$error":"#DIV/0!"}]
[null,null,null,null,null,null,{"$error":"#DIV/0!"},"no",null,{"$error":"#DIV/0!"}]
[null,null,null,null,null,null,{"$error":"#DIV/0!"},"no",null,{"$error":"#DIV/0!"}]
[null,null,null,null,null,null,{"$error":"#DIV/0!"},"no",null,{"$error":"#DIV/0!"}]
[null,null,null,null,null,null,{"$error":"#DIV/0!"},"no",null,{"$error":"#DIV/0!"}]
[null,null,null,null,null,null,{"$error":"#DIV/0!"},"no",null,{"$error":"#DIV/0!"}]
[null,null,null,null,null,null,{"$error":"#DIV/0!"},"no",null,{"$error":"#DIV/0!"}]
[null,null,null,null,null,null,{"$error":"#DIV/0!"},"no",null,{"$error":"#DIV/0!"}]
[null,null,null,null,null,null,{"$error":"#DIV/0!"},"no",null,{"$error":"#DIV/0!"}]
[null,null,null,null,null,null,{"$error":"#DIV/0!"},"no",null,{"$error":"#DIV/0!"}]
[null,null,null,null,null,null,{"$error":"#DIV/0!"},"no",null,{"$error":"#DIV/0!"}]
[null,null,null,null,null,null,{"$error":"#DIV/0!"},"no",null,{"$error":"#DIV/0!"}]
[null,null,null,null,null,null,{"$error":"#DIV/0!"},"no",null,{"$error":"#DIV/0!"}]
[null,null,null,null,null,null,{"$error":"#DIV/0!"},"no",null,{"$error":"#DIV/0!"}]
[null,null,null,null,null,null,{"$error":"#DIV/0!"},"no",null,{"$error":"#DIV/0!"}]
[null,null,null,null,null,null,{"$error":"#DIV/0!"},"no",null,{"$error":"#DIV/0!"}]
[null,null,null,null,null,null,{"$error":"#DIV/0!"},"no",null,{"$error":"#DIV/0!"}]
[null,null,null,null,null,null,{"$error":"#DIV/0!"},"no",null,{"$error":"#DIV/0!"}]
[null,null,null,null,null,null,{"$error":"#DIV/0!"},"no",null,{"$error":"#DIV/0!"}]
[null,null,null,null,null,null,{"$error":"#DIV/0!"},"no",null,{"$error":"#DIV/0!"}]
[null,null,null,null,null,null,{"$error":"#DIV/0!"},"no",null,{"$error":"#DIV/0!"}]
[null,null,null,null,null,null,{"$error":"#DIV/0!"},"no",null,{"$error":"#DIV/0!"}]
[null,null,null,null,null,null,{"$error":"#DIV/0!"},"no",null,{"$error":"#DIV/0!"}]
[null,null,null,null,null,null,{"$error":"#DIV/0!"},"no",null,{"$error":"#DIV/0!"}]
[null,null,null,null,null,null,{"$error":"#DIV/0!"},"no",null,{"$error":"#DIV/0!"}]
[null,null,null,null,null,null,{"$error":"#DIV/0!"},"no",null,{"$error":"#DIV/0!"}]
[null,null,null,null,null,null,{"$error":"#DIV/0!"},"no",null,{"$error":"#DIV/0!"}]
[null,null,null,null,null,null,{"$error":"#DIV/0!"},"no",null,{"$error":"#DIV/0!"}]
[null,null,null,null,null,null,{"$f":"ROUND(AVERAGE(E396:F396),2)","v":{"$error":"#DIV/0!"}},"no",null,{"$f":"IF(I396=\"SI\",IF(H396=\"yes\",\"Excluded Area\",IF(G396<0.55,50,IF(G396<0.71,30,IF(G396<1.05,0,IF(G396<1.55,(740-740*G396),-500))))),IF(I396=\"SII\",IF(H396=\"yes\",\"Excluded Area\",IF(G396<0.55,50,IF(G396<0.81,30, IF(G396<1.21,0, IF(G396<1.55,(1090-930*G396),-500))))),IF(H396=\"yes\",\"Excluded Area\",IF(G396<0.55,50,IF(G396<0.81,30, IF(G396<1.55,0, IF(G396<=1.85,(740-490*G396),-500)))))))","v":{"$error":"#DIV/0!"}}]
[null,null,null,null,null,null,{"$error":"#DIV/0!"},"no",null,{"$error":"#DIV/0!"}]
[null,null,null,null,null,null,{"$error":"#DIV/0!"},"no",null,{"$error":"#DIV/0!"}]
[null,null,null,null,null,null,{"$error":"#DIV/0!"},"no",null,{"$error":"#DIV/0!"}]
[null,null,null,null,null,null,{"$error":"#DIV/0!"},"no",null,{"$error":"#DIV/0!"}]
[null,null,null,null,null,null,{"$error":"#DIV/0!"},"no",null,{"$error":"#DIV/0!"}]
[null,null,null,null,null,null,{"$error":"#DIV/0!"},"no",null,{"$error":"#DIV/0!"}]
[null,null,null,null,null,null,{"$error":"#DIV/0!"},"no",null,{"$error":"#DIV/0!"}]
[null,null,null,null,null,null,{"$error":"#DIV/0!"},"no",null,{"$error":"#DIV/0!"}]
[null,null,null,null,null,null,{"$error":"#DIV/0!"},"no",null,{"$error":"#DIV/0!"}]
[null,null,null,null,null,null,{"$error":"#DIV/0!"},"no",null,{"$error":"#DIV/0!"}]
[null,null,null,null,null,null,{"$error":"#DIV/0!"},"no",null,{"$error":"#DIV/0!"}]
[null,null,null,null,null,null,{"$error":"#DIV/0!"},"no",null,{"$error":"#DIV/0!"}]
[null,null,null,null,null,null,{"$error":"#DIV/0!"},"no",null,{"$error":"#DIV/0!"}]
[null,null,null,null,null,null,{"$error":"#DIV/0!"},"no",null,{"$error":"#DIV/0!"}]
[null,null,null,null,null,null,{"$error":"#DIV/0!"},"no",null,{"$error":"#DIV/0!"}]
[null,null,null,null,null,null,{"$error":"#DIV/0!"},"no",null,{"$error":"#DIV/0!"}]
[null,null,null,null,null,null,{"$error":"#DIV/0!"},"no",null,{"$error":"#DIV/0!"}]
[null,null,null,null,null,null,{"$error":"#DIV/0!"},"no",null,{"$error":"#DIV/0!"}]
[null,null,null,null,null,null,{"$error":"#DIV/0!"},"no",null,{"$error":"#DIV/0!"}]
[null,null,null,null,null,null,{"$error":"#DIV/0!"},"no",null,{"$error":"#DIV/0!"}]
[null,null,null,null,null,null,{"$error":"#DIV/0!"},"no",null,{"$error":"#DIV/0!"}]
[null,null,null,null,null,null,{"$error":"#DIV/0!"},"no",null,{"$error":"#DIV/0!"}]
[null,null,null,null,null,null,{"$error":"#DIV/0!"},"no",null,{"$error":"#DIV/0!"}]
[null,null,null,null,null,null,{"$error":"#DIV/0!"},"no",null,{"$error":"#DIV/0!"}]
[null,null,null,null,null,null,{"$error":"#DIV/0!"},"no",null,{"$error":"#DIV/0!"}]
[null,null,null,null,null,null,{"$error":"#DIV/0!"},"no",null,{"$error":"#DIV/0!"}]
[null,null,null,null,null,null,{"$error":"#DIV/0!"},"no",null,{"$error":"#DIV/0!"}]
[null,null,null,null,null,null,{"$error":"#DIV/0!"},"no",null,{"$error":"#DIV/0!"}]
[null,null,null,null,null,null,{"$error":"#DIV/0!"},"no",null,{"$error":"#DIV/0!"}]
[null,null,null,null,null,null,{"$error":"#DIV/0!"},"no",null,{"$error":"#DIV/0!"}]
[null,null,null,null,null,null,{"$error":"#DIV/0!"},"no",null,{"$error":"#DIV/0!"}]
[null,null,null,null,null,null,{"$error":"#DIV/0!"},"no",null,{"$error":"#DIV/0!"}]
[null,null,null,null,null,null,{"$error":"#DIV/0!"},"no",null,{"$error":"#DIV/0!"}]
[null,null,null,null,null,null,{"$error":"#DIV/0!"},"no",null,{"$error":"#DIV/0!"}]
[null,null,null,null,null,null,{"$error":"#DIV/0!"},"no",null,{"$error":"#DIV/0!"}]
[null,null,null,null,null,null,{"$error":"#DIV/0!"},"no",null,{"$error":"#DIV/0!"}]
[null,null,null,null,null,null,{"$error":"#DIV/0!"},"no",null,{"$error":"#DIV/0!"}]
[null,null,null,null,null,null,{"$error":"#DIV/0!"},"no",null,{"$error":"#DIV/0!"}]
[null,null,null,null,null,null,{"$error":"#DIV/0!"},"no",null,{"$error":"#DIV/0!"}]
[null,null,null,null,null,null,{"$error":"#DIV/0!"},"no",null,{"$error":"#DIV/0!"}]
[null,null,null,null,null,null,{"$error":"#DIV/0!"},"no",null,{"$error":"#DIV/0!"}]
[null,null,null,null,null,null,{"$error":"#DIV/0!"},"no",null,{"$error":"#DIV/0!"}]
[null,null,null,null,null,null,{"$error":"#DIV/0!"},"no",null,{"$error":"#DIV/0!"}]
[null,null,null,null,null,null,{"$error":"#DIV/0!"},"no",null,{"$error":"#DIV/0!"}]
[null,null,null,null,null,null,{"$error":"#DIV/0!"},"no",null,{"$error":"#DIV/0!"}]
[null,null,null,null,null,null,{"$error":"#DIV/0!"},"no",null,{"$error":"#DIV/0!"}]
[null,null,null,null,null,null,{"$error":"#DIV/0!"},"no",null,{"$error":"#DIV/0!"}]
[null,null,null,null,null,null,{"$error":"#DIV/0!"},"no",null,{"$error":"#DIV/0!"}]
[null,null,null,null,null,null,{"$error":"#DIV/0!"},"no",null,{"$error":"#DIV/0!"}]
[null,null,null,null,null,null,{"$error":"#DIV/0!"},"no",null,{"$error":"#DIV/0!"}]
[null,null,null,null,null,null,{"$error":"#DIV/0!"},"no",null,{"$error":"#DIV/0!"}]
[null,null,null,null,null,null,{"$error":"#DIV/0!"},"no",null,{"$error":"#DIV/0!"}]
[null,null,null,null,null,null,{"$error":"#DIV/0!"},"no",null,{"$error":"#DIV/0!"}]
[null,null,null,null,null,null,{"$error":"#DIV/0!"},"no",null,{"$error":"#DIV/0!"}]
[null,null,null,null,null,null,{"$error":"#DIV/0!"},"no",null,{"$error":"#DIV/0!"}]
[null,null,null,null,null,null,{"$error":"#DIV/0!"},"no",null,{"$error":"#DIV/0!"}]
[null,null,null,null,null,null,{"$error":"#DIV/0!"},"no",null,{"$error":"#DIV/0!"}]
[null,null,null,null,null,null,{"$error":"#DIV/0!"},"no",null,{"$error":"#DIV/0!"}]
[null,null,null,null,null,null,{"$error":"#DIV/0!"},"no",null,{"$error":"#DIV/0!"}]
[null,null,null,null,null,null,{"$error":"#DIV/0!"},"no",null,{"$error":"#DIV/0!"}]
[null,null,null,null,null,null,{"$error":"#DIV/0!"},"no",null,{"$error":"#DIV/0!"}]
[null,null,null,null,null,null,{"$error":"#DIV/0!"},"no",null,{"$error":"#DIV/0!"}]
[null,null,null,null,null,null,{"$error":"#DIV/0!"},"no",null,{"$error":"#DIV/0!"}]
[null,null,null,null,null,null,{"$f":"ROUND(AVERAGE(E460:F460),2)","v":{"$error":"#DIV/0!"}},"no",null,{"$f":"IF(I460=\"SI\",IF(H460=\"yes\",\"Excluded Area\",IF(G460<0.55,50,IF(G460<0.71,30,IF(G460<1.05,0,IF(G460<1.55,(740-740*G460),-500))))),IF(I460=\"SII\",IF(H460=\"yes\",\"Excluded Area\",IF(G460<0.55,50,IF(G460<0.81,30, IF(G460<1.21,0, IF(G460<1.55,(1090-930*G460),-500))))),IF(H460=\"yes\",\"Excluded Area\",IF(G460<0.55,50,IF(G460<0.81,30, IF(G460<1.55,0, IF(G460<=1.85,(740-490*G460),-500)))))))","v":{"$error":"#DIV/0!"}}]
[null,null,null,null,null,null,{"$error":"#DIV/0!"},"no",null,{"$error":"#DIV/0!"}]
[null,null,null,null,null,null,{"$error":"#DIV/0!"},"no",null,{"$error":"#DIV/0!"}]
[null,null,null,null,null,null,{"$error":"#DIV/0!"},"no",null,{"$error":"#DIV/0!"}]
[null,null,null,null,null,null,{"$error":"#DIV/0!"},"no",null,{"$error":"#DIV/0!"}]
[null,null,null,null,null,null,{"$error":"#DIV/0!"},"no",null,{"$error":"#DIV/0!"}]
[null,null,null,null,null,null,{"$error":"#DIV/0!"},"no",null,{"$error":"#DIV/0!"}]
[null,null,null,null,null,null,{"$error":"#DIV/0!"},"no",null,{"$error":"#DIV/0!"}]
[null,null,null,null,null,null,{"$error":"#DIV/0!"},"no",null,{"$error":"#DIV/0!"}]
[null,null,null,null,null,null,{"$error":"#DIV/0!"},"no",null,{"$error":"#DIV/0!"}]
[null,null,null,null,null,null,{"$error":"#DIV/0!"},"no",null,{"$error":"#DIV/0!"}]
[null,null,null,null,null,null,{"$error":"#DIV/0!"},"no",null,{"$error":"#DIV/0!"}]
[null,null,null,null,null,null,{"$error":"#DIV/0!"},"no",null,{"$error":"#DIV/0!"}]
[null,null,null,null,null,null,{"$error":"#DIV/0!"},"no",null,{"$error":"#DIV/0!"}]
[null,null,null,null,null,null,{"$error":"#DIV/0!"},"no",null,{"$error":"#DIV/0!"}]
[null,null,null,null,null,null,{"$error":"#DIV/0!"},"no",null,{"$error":"#DIV/0!"}]
[null,null,null,null,null,null,{"$error":"#DIV/0!"},"no",null,{"$error":"#DIV/0!"}]
[null,null,null,null,null,null,{"$error":"#DIV/0!"},"no",null,{"$error":"#DIV/0!"}]
[null,null,null,null,null,null,{"$error":"#DIV/0!"},"no",null,{"$error":"#DIV/0!"}]
[null,null,null,null,null,null,{"$error":"#DIV/0!"},"no",null,{"$error":"#DIV/0!"}]
[null,null,null,null,null,null,{"$error":"#DIV/0!"},"no",null,{"$error":"#DIV/0!"}]
[null,null,null,null,null,null,{"$error":"#DIV/0!"},"no",null,{"$error":"#DIV/0!"}]
[null,null,null,null,null,null,{"$error":"#DIV/0!"},"no",null,{"$error":"#DIV/0!"}]
[null,null,null,null,null,null,{"$error":"#DIV/0!"},"no",null,{"$error":"#DIV/0!"}]
[null,null,null,null,null,null,{"$error":"#DIV/0!"},"no",null,{"$error":"#DIV/0!"}]
[null,null,null,null,null,null,{"$error":"#DIV/0!"},"no",null,{"$error":"#DIV/0!"}]
[null,null,null,null,null,null,{"$error":"#DIV/0!"},"no",null,{"$error":"#DIV/0!"}]
[null,null,null,null,null,null,{"$error":"#DIV/0!"},"no",null,{"$error":"#DIV/0!"}]
[null,null,null,null,null,null,{"$error":"#DIV/0!"},"no",null,{"$error":"#DIV/0!"}]
[null,null,null,null,null,null,{"$error":"#DIV/0!"},"no",null,{"$error":"#DIV/0!"}]
[null,null,null,null,null,null,{"$error":"#DIV/0!"},"no",null,{"$error":"#DIV/0!"}]
[null,null,null,null,null,null,{"$error":"#DIV/0!"},"no",null,{"$error":"#DIV/0!"}]
[null,null,null,null,null,null,{"$error":"#DIV/0!"},"no",null,{"$error":"#DIV/0!"}]
[null,null,null,null,null,null,{"$error":"#DIV/0!"},"no",null,{"$error":"#DIV/0!"}]
[null,null,null,null,null,null,{"$error":"#DIV/0!"},"no",null,{"$error":"#DIV/0!"}]
[null,null,null,null,null,null,{"$error":"#DIV/0!"},"no",null,{"$error":"#DIV/0!"}]
[null,null,null,null,null,null,{"$error":"#DIV/0!"},"no",null,{"$error":"#DIV/0!"}]
[null,null,null,null,null,null,{"$error":"#DIV/0!"},"no",null,{"$error":"#DIV/0!"}]
[null,null,null,null,null,null,{"$error":"#DIV/0!"},"no",null,{"$error":"#DIV/0!"}]
[null,null,null,null,null,null,{"$error":"#DIV/0!"},"no",null,{"$error":"#DIV/0!"}]
[null,null,null,null,null,null,{"$error":"#DIV/0!"},"no",null,{"$error":"#DIV/0!"}]
[null,null,null,null,null,null,{"$error":"#DIV/0!"},"no",null,{"$error":"#DIV/0!"}]
[null,null,null,null,null,null,{"$error":"#DIV/0!"},"no",null,{"$error":"#DIV/0!"}]
[null,null,null,null,null,null,{"$error":"#DIV/0!"},"no",null,{"$error":"#DIV/0!"}]
[null,null,null,null,null,null,{"$error":"#DIV/0!"},"no",null,{"$error":"#DIV/0!"}]
[null,null,null,null,null,null,{"$error":"#DIV/0!"},"no",null,{"$error":"#DIV/0!"}]
[null,null,null,null,null,null,{"$error":"#DIV/0!"},"no",null,{"$error":"#DIV/0!"}]
[null,null,null,null,null,null,{"$error":"#DIV/0!"},"no",null,{"$error":"#DIV/0!"}]
[null,null,null,null,null,null,{"$error":"#DIV/0!"},"no",null,{"$error":"#DIV/0!"}]
[null,null,null,null,null,null,{"$error":"#DIV/0!"},"no",null,{"$error":"#DIV/0!"}]
[null,null,null,null,null,null,{"$error":"#DIV/0!"},"no",null,{"$error":"#DIV/0!"}]
[null,null,null,null,null,null,{"$error":"#DIV/0!"},"no",null,{"$error":"#DIV/0!"}]
[null,null,null,null,null,null,{"$error":"#DIV/0!"},"no",null,{"$error":"#DIV/0!"}]
[null,null,null,null,null,null,{"$error":"#DIV/0!"},"no",null,{"$error":"#DIV/0!"}]
[null,null,null,null,null,null,{"$error":"#DIV/0!"},"no",null,{"$error":"#DIV/0!"}]
[null,null,null,null,null,null,{"$error":"#DIV/0!"},"no",null,{"$error":"#DIV/0!"}]
[null,null,null,null,null,null,{"$error":"#DIV/0!"},"no",null,{"$error":"#DIV/0!"}]
[null,null,null,null,null,null,{"$error":"#DIV/0!"},"no",null,{"$error":"#DIV/0!"}]
[null,null,null,null,null,null,{"$error":"#DIV/0!"},"no",null,{"$error":"#DIV/0!"}]
[null,null,null,null,null,null,{"$error":"#DIV/0!"},"no",null,{"$error":"#DIV/0!"}]
[null,null,null,null,null,null,{"$error":"#DIV/0!"},"no",null,{"$error":"#DIV/0!"}]
[null,null,null,null,null,null,{"$error":"#DIV/0!"},"no",null,{"$error":"#DIV/0!"}]
[null,null,null,null,null,null,{"$error":"#DIV/0!"},"no",null,{"$error":"#DIV/0!"}]
[null,null,null,null,null,null,{"$error":"#DIV/0!"},"no",null,{"$error":"#DIV/0!"}]
[null,null,null,null,null,null,{"$f":"ROUND(AVERAGE(E524:F524),2)","v":{"$error":"#DIV/0!"}},"no",null,{"$f":"IF(I524=\"SI\",IF(H524=\"yes\",\"Excluded Area\",IF(G524<0.55,50,IF(G524<0.71,30,IF(G524<1.05,0,IF(G524<1.55,(740-740*G524),-500))))),IF(I524=\"SII\",IF(H524=\"yes\",\"Excluded Area\",IF(G524<0.55,50,IF(G524<0.81,30, IF(G524<1.21,0, IF(G524<1.55,(1090-930*G524),-500))))),IF(H524=\"yes\",\"Excluded Area\",IF(G524<0.55,50,IF(G524<0.81,30, IF(G524<1.55,0, IF(G524<=1.85,(740-490*G524),-500)))))))","v":{"$error":"#DIV/0!"}}]
[null,null,null,null,null,null,{"$error":"#DIV/0!"},"no",null,{"$error":"#DIV/0!"}]
[null,null,null,null,null,null,{"$error":"#DIV/0!"},"no",null,{"$error":"#DIV/0!"}]
[null,null,null,null,null,null,{"$error":"#DIV/0!"},"no",null,{"$error":"#DIV/0!"}]
[null,null,null,null,null,null,{"$error":"#DIV/0!"},"no",null,{"$error":"#DIV/0!"}]
[null,null,null,null,null,null,{"$error":"#DIV/0!"},"no",null,{"$error":"#DIV/0!"}]
[null,null,null,null,null,null,{"$error":"#DIV/0!"},"no",null,{"$error":"#DIV/0!"}]
[null,null,null,null,null,null,{"$error":"#DIV/0!"},"no",null,{"$error":"#DIV/0!"}]
[null,null,null,null,null,null,{"$error":"#DIV/0!"},"no",null,{"$error":"#DIV/0!"}]
[null,null,null,null,null,null,{"$error":"#DIV/0!"},"no",null,{"$error":"#DIV/0!"}]
[null,null,null,null,null,null,{"$error":"#DIV/0!"},"no",null,{"$error":"#DIV/0!"}]
[null,null,null,null,null,null,{"$error":"#DIV/0!"},"no",null,{"$error":"#DIV/0!"}]
[null,null,null,null,null,null,{"$error":"#DIV/0!"},"no",null,{"$error":"#DIV/0!"}]
[null,null,null,null,null,null,{"$error":"#DIV/0!"},"no",null,{"$error":"#DIV/0!"}]
[null,null,null,null,null,null,{"$error":"#DIV/0!"},"no",null,{"$error":"#DIV/0!"}]
[null,null,null,null,null,null,{"$error":"#DIV/0!"},"no",null,{"$error":"#DIV/0!"}]
[null,null,null,null,null,null,{"$error":"#DIV/0!"},"no",null,{"$error":"#DIV/0!"}]
[null,null,null,null,null,null,{"$error":"#DIV/0!"},"no",null,{"$error":"#DIV/0!"}]
[null,null,null,null,null,null,{"$error":"#DIV/0!"},"no",null,{"$error":"#DIV/0!"}]
[null,null,null,null,null,null,{"$error":"#DIV/0!"},"no",null,{"$error":"#DIV/0!"}]
[null,null,null,null,null,null,{"$error":"#DIV/0!"},"no",null,{"$error":"#DIV/0!"}]
[null,null,null,null,null,null,{"$error":"#DIV/0!"},"no",null,{"$error":"#DIV/0!"}]
[null,null,null,null,null,null,{"$error":"#DIV/0!"},"no",null,{"$error":"#DIV/0!"}]
[null,null,null,null,null,null,{"$error":"#DIV/0!"},"no",null,{"$error":"#DIV/0!"}]
[null,null,null,null,null,null,{"$error":"#DIV/0!"},"no",null,{"$error":"#DIV/0!"}]
[null,null,null,null,null,null,{"$error":"#DIV/0!"},"no",null,{"$error":"#DIV/0!"}]
[null,null,null,null,null,null,{"$error":"#DIV/0!"},"no",null,{"$error":"#DIV/0!"}]
[null,null,null,null,null,null,{"$error":"#DIV/0!"},"no",null,{"$error":"#DIV/0!"}]
[null,null,null,null,null,null,{"$error":"#DIV/0!"},"no",null,{"$error":"#DIV/0!"}]
[null,null,null,null,null,null,{"$error":"#DIV/0!"},"no",null,{"$error":"#DIV/0!"}]
[null,null,null,null,null,null,{"$error":"#DIV/0!"},"no",null,{"$error":"#DIV/0!"}]
[null,null,null,null,null,null,{"$error":"#DIV/0!"},"no",null,{"$error":"#DIV/0!"}]
[null,null,null,null,null,null,{"$error":"#DIV/0!"},"no",null,{"$error":"#DIV/0!"}]
[null,null,null,null,null,null,{"$error":"#DIV/0!"},"no",null,{"$error":"#DIV/0!"}]
[null,null,null,null,null,null,{"$error":"#DIV/0!"},"no",null,{"$error":"#DIV/0!"}]
[null,null,null,null,null,null,{"$error":"#DIV/0!"},"no",null,{"$error":"#DIV/0!"}]
[null,null,null,null,null,null,{"$error":"#DIV/0!"},"no",null,{"$error":"#DIV/0!"}]
[null,null,null,null,null,null,{"$error":"#DIV/0!"},"no",null,{"$error":"#DIV/0!"}]
[null,null,null,null,null,null,{"$error":"#DIV/0!"},"no",null,{"$error":"#DIV/0!"}]
[null,null,null,null,null,null,{"$error":"#DIV/0!"},"no",null,{"$error":"#DIV/0!"}]
[null,null,null,null,null,null,{"$error":"#DIV/0!"},"no",null,{"$error":"#DIV/0!"}]
[null,null,null,null,null,null,{"$error":"#DIV/0!"},"no",null,{"$error":"#DIV/0!"}]
[null,null,null,null,null,null,{"$error":"#DIV/0!"},"no",null,{"$error":"#DIV/0!"}]
[null,null,null,null,null,null,{"$error":"#DIV/0!"},"no",null,{"$error":"#DIV/0!"}]
[null,null,null,null,null,null,{"$error":"#DIV/0!"},"no",null,{"$error":"#DIV/0!"}]
[null,null,null,null,null,null,{"$error":"#DIV/0!"},"no",null,{"$error":"#DIV/0!"}]
[null,null,null,null,null,null,{"$error":"#DIV/0!"},"no",null,{"$error":"#DIV/0!"}]
[null,null,null,null,null,null,{"$error":"#DIV/0!"},"no",null,{"$error":"#DIV/0!"}]
[null,null,null,null,null,null,{"$error":"#DIV/0!"},"no",null,{"$error":"#DIV/0!"}]
[null,null,null,null,null,null,{"$error":"#DIV/0!"},"no",null,{"$error":"#DIV/0!"}]
[null,null,null,null,null,null,{"$error":"#DIV/0!"},"no",null,{"$error":"#DIV/0!"}]
[null,null,null,null,null,null,{"$error":"#DIV/0!"},"no",null,{"$error":"#DIV/0!"}]
[null,null,null,null,null,null,{"$error":"#DIV/0!"},"no",null,{"$error":"#DIV/0!"}]
[null,null,null,null,null,null,{"$error":"#DIV/0!"},"no",null,{"$error":"#DIV/0!"}]
[null,null,null,null,null,null,{"$error":"#DIV/0!"},"no",null,{"$error":"#DIV/0!"}]
[null,null,null,null,null,null,{"$error":"#DIV/0!"},"no",null,{"$error":"#DIV/0!"}]
[null,null,null,null,null,null,{"$error":"#DIV/0!"},"no",null,{"$error":"#DIV/0!"}]
[null,null,null,null,null,null,{"$error":"#DIV/0!"},"no",null,{"$error":"#DIV/0!"}]
[null,null,null,null,null,null,{"$error":"#DIV/0!"},"no",null,{"$error":"#DIV/0!"}]
[null,null,null,null,null,null,{"$error":"#DIV/0!"},"no",null,{"$error":"#DIV/0!"}]
[null,null,null,null,null,null,{"$error":"#DIV/0!"},"no",null,{"$error":"#DIV/0!"}]
[null,null,null,null,null,null,{"$error":"#DIV/0!"},"no",null,{"$error":"#DIV/0!"}]
[null,null,null,null,null,null,{"$error":"#DIV/0!"},"no",null,{"$error":"#DIV/0!"}]
[null,null,null,null,null,null,{"$error":"#DIV/0!"},"no",null,{"$error":"#DIV/0!"}]
[null,null,null,null,null,null,{"$f":"ROUND(AVERAGE(E588:F588),2)","v":{"$error":"#DIV/0!"}},"no",null,{"$f":"IF(I588=\"SI\",IF(H588=\"yes\",\"Excluded Area\",IF(G588<0.55,50,IF(G588<0.71,30,IF(G588<1.05,0,IF(G588<1.55,(740-740*G588),-500))))),IF(I588=\"SII\",IF(H588=\"yes\",\"Excluded Area\",IF(G588<0.55,50,IF(G588<0.81,30, IF(G588<1.21,0, IF(G588<1.55,(1090-930*G588),-500))))),IF(H588=\"yes\",\"Excluded Area\",IF(G588<0.55,50,IF(G588<0.81,30, IF(G588<1.55,0, IF(G588<=1.85,(740-490*G588),-500)))))))","v":{"$error":"#DIV/0!"}}]
[null,null,null,null,null,null,{"$error":"#DIV/0!"},"no",null,{"$error":"#DIV/0!"}]
[null,null,null,null,null,null,{"$error":"#DIV/0!"},"no",null,{"$error":"#DIV/0!"}]
[null,null,null,null,null,null,{"$error":"#DIV/0!"},"no",null,{"$error":"#DIV/0!"}]
[null,null,null,null,null,null,{"$error":"#DIV/0!"},"no",null,{"$error":"#DIV/0!"}]
[null,null,null,null,null,null,{"$error":"#DIV/0!"},"no",null,{"$error":"#DIV/0!"}]
[null,null,null,null,null,null,{"$error":"#DIV/0!"},"no",null,{"$error":"#DIV/0!"}]
[null,null,null,null,null,null,{"$error":"#DIV/0!"},"no",null,{"$error":"#DIV/0!"}]
[null,null,null,null,null,null,{"$error":"#DIV/0!"},"no",null,{"$error":"#DIV/0!"}]
[null,null,null,null,null,null,{"$error":"#DIV/0!"},"no",null,{"$error":"#DIV/0!"}]
[null,null,null,null,null,null,{"$error":"#DIV/0!"},"no",null,{"$error":"#DIV/0!"}]
[null,null,null,null,null,null,{"$error":"#DIV/0!"},"no",null,{"$error":"#DIV/0!"}]
[null,null,null,null,null,null,{"$error":"#DIV/0!"},"no",null,{"$error":"#DIV/0!"}]
[null,null,null,null,null,null,{"$error":"#DIV/0!"},"no",null,{"$error":"#DIV/0!"}]
[null,null,null,null,null,null,{"$error":"#DIV/0!"},"no",null,{"$error":"#DIV/0!"}]
[null,null,null,null,null,null,{"$error":"#DIV/0!"},"no",null,{"$error":"#DIV/0!"}]
[null,null,null,null,null,null,{"$error":"#DIV/0!"},"no",null,{"$error":"#DIV/0!"}]
[null,null,null,null,null,null,{"$error":"#DIV/0!"},"no",null,{"$error":"#DIV/0!"}]
[null,null,null,null,null,null,{"$error":"#DIV/0!"},"no",null,{"$error":"#DIV/0!"}]
[null,null,null,null,null,null,{"$error":"#DIV/0!"},"no",null,{"$error":"#DIV/0!"}]
[null,null,null,null,null,null,{"$error":"#DIV/0!"},"no",null,{"$error":"#DIV/0!"}]
[null,null,null,null,null,null,{"$error":"#DIV/0!"},"no",null,{"$error":"#DIV/0!"}]
[null,null,null,null,null,null,{"$error":"#DIV/0!"},"no",null,{"$error":"#DIV/0!"}]
[null,null,null,null,null,null,{"$error":"#DIV/0!"},"no",null,{"$error":"#DIV/0!"}]
[null,null,null,null,null,null,{"$error":"#DIV/0!"},"no",null,{"$error":"#DIV/0!"}]
[null,null,null,null,null,null,{"$error":"#DIV/0!"},"no",null,{"$error":"#DIV/0!"}]
[null,null,null,null,null,null,{"$error":"#DIV/0!"},"no",null,{"$error":"#DIV/0!"}]
[null,null,null,null,null,null,{"$error":"#DIV/0!"},"no",null,{"$error":"#DIV/0!"}]
[null,null,null,null,null,null,{"$error":"#DIV/0!"},"no",null,{"$error":"#DIV/0!"}]
[null,null,null,null,null,null,{"$error":"#DIV/0!"},"no",null,{"$error":"#DIV/0!"}]
[null,null,null,null,null,null,{"$error":"#DIV/0!"},"no",null,{"$error":"#DIV/0!"}]
[null,null,null,null,null,null,{"$error":"#DIV/0!"},"no",null,{"$error":"#DIV/0!"}]
[null,null,null,null,null,null,{"$error":"#DIV/0!"},"no",null,{"$error":"#DIV/0!"}]
[null,null,null,null,null,null,{"$error":"#DIV/0!"},"no",null,{"$error":"#DIV/0!"}]
[null,null,null,null,null,null,{"$error":"#DIV/0!"},"no",null,{"$error":"#DIV/0!"}]
[null,null,null,null,null,null,{"$error":"#DIV/0!"},"no",null,{"$error":"#DIV/0!"}]
[null,null,null,null,null,null,{"$error":"#DIV/0!"},"no",null,{"$error":"#DIV/0!"}]
[null,null,null,null,null,null,{"$error":"#DIV/0!"},"no",null,{"$error":"#DIV/0!"}]
[null,null,null,null,null,null,{"$error":"#DIV/0!"},"no",null,{"$error":"#DIV/0!"}]
[null,null,null,null,null,null,{"$error":"#DIV/0!"},"no",null,{"$error":"#DIV/0!"}]
[null,null,null,null,null,null,{"$error":"#DIV/0!"},"no",null,{"$error":"#DIV/0!"}]
[null,null,null,null,null,null,{"$error":"#DIV/0!"},"no",null,{"$error":"#DIV/0!"}]
[null,null,null,null,null,null,{"$error":"#DIV/0!"},"no",null,{"$error":"#DIV/0!"}]
[null,null,null,null,null,null,{"$error":"#DIV/0!"},"no",null,{"$error":"#DIV/0!"}]
[null,null,null,null,null,null,{"$error":"#DIV/0!"},"no",null,{"$error":"#DIV/0!"}]
[null,null,null,null,null,null,{"$error":"#DIV/0!"},"no",null,{"$error":"#DIV/0!"}]
[null,null,null,null,null,null,{"$error":"#DIV/0!"},"no",null,{"$error":"#DIV/0!"}]
[null,null,null,null,null,null,{"$error":"#DIV/0!"},"no",null,{"$error":"#DIV/0!"}]
[null,null,null,null,null,null,{"$error":"#DIV/0!"},"no",null,{"$error":"#DIV/0!"}]
[null,null,null,null,null,null,{"$error":"#DIV/0!"},"no",null,{"$error":"#DIV/0!"}]
[null,null,null,null,null,null,{"$error":"#DIV/0!"},"no",null,{"$error":"#DIV/0!"}]
[null,null,null,null,null,null,{"$error":"#DIV/0!"},"no",null,{"$error":"#DIV/0!"}]
[null,null,null,null,null,null,{"$error":"#DIV/0!"},"no",null,{"$error":"#DIV/0!"}]
[null,null,null,null,null,null,{"$error":"#DIV/0!"},"no",null,{"$error":"#DIV/0!"}]
[null,null,null,null,null,null,{"$error":"#DIV/0!"},"no",null,{"$error":"#DIV/0!"}]
[null,null,null,null,null,null,{"$error":"#DIV/0!"},"no",null,{"$error":"#DIV/0!"}]
[null,null,null,null,null,null,{"$error":"#DIV/0!"},"no",null,{"$error":"#DIV/0!"}]
[null,null,null,null,null,null,{"$error":"#DIV/0!"},"no",null,{"$error":"#DIV/0!"}]
[null,null,null,null,null,null,{"$error":"#DIV/0!"},"no",null,{"$error":"#DIV/0!"}]
[null,null,null,null,null,null,{"$error":"#DIV/0!"},"no",null,{"$error":"#DIV/0!"}]
[null,null,null,null,null,null,{"$error":"#DIV/0!"},"no",null,{"$error":"#DIV/0!"}]
[null,null,null,null,null,null,{"$error":"#DIV/0!"},"no",null,{"$error":"#DIV/0!"}]
[null,null,null,null,null,null,{"$error":"#DIV/0!"},"no",null,{"$error":"#DIV/0!"}]
[null,null,null,null,null,null,{"$error":"#DIV/0!"},"no",null,{"$error":"#DIV/0!"}]
[null,null,null,null,null,null,{"$f":"ROUND(AVERAGE(E652:F652),2)","v":{"$error":"#DIV/0!"}},"no",null,{"$f":"IF(I652=\"SI\",IF(H652=\"yes\",\"Excluded Area\",IF(G652<0.55,50,IF(G652<0.71,30,IF(G652<1.05,0,IF(G652<1.55,(740-740*G652),-500))))),IF(I652=\"SII\",IF(H652=\"yes\",\"Excluded Area\",IF(G652<0.55,50,IF(G652<0.81,30, IF(G652<1.21,0, IF(G652<1.55,(1090-930*G652),-500))))),IF(H652=\"yes\",\"Excluded Area\",IF(G652<0.55,50,IF(G652<0.81,30, IF(G652<1.55,0, IF(G652<=1.85,(740-490*G652),-500)))))))","v":{"$error":"#DIV/0!"}}]
[null,null,null,null,null,null,{"$error":"#DIV/0!"},"no",null,{"$error":"#DIV/0!"}]
[null,null,null,null,null,null,{"$error":"#DIV/0!"},"no",null,{"$error":"#DIV/0!"}]
[null,null,null,null,null,null,{"$error":"#DIV/0!"},"no",null,{"$error":"#DIV/0!"}]
[null,null,null,null,null,null,{"$error":"#DIV/0!"},"no",null,{"$error":"#DIV/0!"}]
[null,null,null,null,null,null,{"$error":"#DIV/0!"},"no",null,{"$error":"#DIV/0!"}]
[null,null,null,null,null,null,{"$error":"#DIV/0!"},"no",null,{"$error":"#DIV/0!"}]
[null,null,null,null,null,null,{"$error":"#DIV/0!"},"no",null,{"$error":"#DIV/0!"}]
[null,null,null,null,null,null,{"$error":"#DIV/0!"},"no",null,{"$error":"#DIV/0!"}]
[null,null,null,null,null,null,{"$error":"#DIV/0!"},"no",null,{"$error":"#DIV/0!"}]
[null,null,null,null,null,null,{"$error":"#DIV/0!"},"no",null,{"$error":"#DIV/0!"}]
[null,null,null,null,null,null,{"$error":"#DIV/0!"},"no",null,{"$error":"#DIV/0!"}]
[null,null,null,null,null,null,{"$error":"#DIV/0!"},"no",null,{"$error":"#DIV/0!"}]
[null,null,null,null,null,null,{"$error":"#DIV/0!"},"no",null,{"$error":"#DIV/0!"}]
[null,null,null,null,null,null,{"$error":"#DIV/0!"},"no",null,{"$error":"#DIV/0!"}]
[null,null,null,null,null,null,{"$error":"#DIV/0!"},"no",null,{"$error":"#DIV/0!"}]
[null,null,null,null,null,null,{"$error":"#DIV/0!"},"no",null,{"$error":"#DIV/0!"}]
[null,null,null,null,null,null,{"$error":"#DIV/0!"},"no",null,{"$error":"#DIV/0!"}]
[null,null,null,null,null,null,{"$error":"#DIV/0!"},"no",null,{"$error":"#DIV/0!"}]
[null,null,null,null,null,null,{"$error":"#DIV/0!"},"no",null,{"$error":"#DIV/0!"}]
[null,null,null,null,null,null,{"$error":"#DIV/0!"},"no",null,{"$error":"#DIV/0!"}]
[null,null,null,null,null,null,{"$error":"#DIV/0!"},"no",null,{"$error":"#DIV/0!"}]
[null,null,null,null,null,null,{"$error":"#DIV/0!"},"no",null,{"$error":"#DIV/0!"}]
[null,null,null,null,null,null,{"$error":"#DIV/0!"},"no",null,{"$error":"#DIV/0!"}]
[null,null,null,null,null,null,{"$error":"#DIV/0!"},"no",null,{"$error":"#DIV/0!"}]
[null,null,null,null,null,null,{"$error":"#DIV/0!"},"no",null,{"$error":"#DIV/0!"}]
[null,null,null,null,null,null,{"$error":"#DIV/0!"},"no",null,{"$error":"#DIV/0!"}]
[null,null,null,null,null,null,{"$error":"#DIV/0!"},"no",null,{"$error":"#DIV/0!"}]
[null,null,null,null,null,null,{"$error":"#DIV/0!"},"no",null,{"$error":"#DIV/0!"}]
[null,null,null,null,null,null,{"$error":"#DIV/0!"},"no",null,{"$error":"#DIV/0!"}]
[null,null,null,null,null,null,{"$error":"#DIV/0!"},"no",null,{"$error":"#DIV/0!"}]
[null,null,null,null,null,null,{"$error":"#DIV/0!"},"no",null,{"$error":"#DIV/0!"}]
[null,null,null,null,null,null,{"$error":"#DIV/0!"},"no",null,{"$error":"#DIV/0!"}]
[null,null,null,null,null,null,{"$error":"#DIV/0!"},"no",null,{"$error":"#DIV/0!"}]
[null,null,null,null,null,null,{"$error":"#DIV/0!"},"no",null,{"$error":"#DIV/0!"}]
[null,null,null,null,null,null,{"$error":"#DIV/0!"},"no",null,{"$error":"#DIV/0!"}]
[null,null,null,null,null,null,{"$error":"#DIV/0!"},"no",null,{"$error":"#DIV/0!"}]
[null,null,null,null,null,null,{"$error":"#DIV/0!"},"no",null,{"$error":"#DIV/0!"}]
[null,null,null,null,null,null,{"$error":"#DIV/0!"},"no",null,{"$error":"#DIV/0!"}]
[null,null,null,null,null,null,{"$error":"#DIV/0!"},"no",null,{"$error":"#DIV/0!"}]
[null,null,null,null,null,null,{"$error":"#DIV/0!"},"no",null,{"$error":"#DIV/0!"}]
[null,null,null,null,null,null,{"$error":"#DIV/0!"},"no",null,{"$error":"#DIV/0!"}]
[null,null,null,null,null,null,{"$error":"#DIV/0!"},"no",null,{"$error":"#DIV/0!"}]
[null,null,null,null,null,null,{"$error":"#DIV/0!"},"no",null,{"$error":"#DIV/0!"}]
[null,null,null,null,null,null,{"$error":"#DIV/0!"},"no",null,{"$error":"#DIV/0!"}]
[null,null,null,null,null,null,{"$error":"#DIV/0!"},"no",null,{"$error":"#DIV/0!"}]
[null,null,null,null,null,null,{"$error":"#DIV/0!"},"no",null,{"$error":"#DIV/0!"}]
[null,null,null,null,null,null,{"$error":"#DIV/0!"},"no",null,{"$error":"#DIV/0!"}]
[null,null,null,null,null,null,{"$error":"#DIV/0!"},"no",null,{"$error":"#DIV/0!"}]
[null,null,null,null,null,null,{"$error":"#DIV/0!"},"no",null,{"$error":"#DIV/0!"}]
[null,null,null,null,null,null,{"$error":"#DIV/0!"},"no",null,{"$error":"#DIV/0!"}]
[null,null,null,null,null,null,{"$error":"#DIV/0!"},"no",null,{"$error":"#DIV/0!"}]
[null,null,null,null,null,null,{"$error":"#DIV/0!"},"no",null,{"$error":"#DIV/0!"}]
[null,null,null,null,null,null,{"$error":"#DIV/0!"},"no",null,{"$error":"#DIV/0!"}]
[null,null,null,null,null,null,{"$error":"#DIV/0!"},"no",null,{"$error":"#DIV/0!"}]
[null,null,null,null,null,null,{"$error":"#DIV/0!"},"no",null,{"$error":"#DIV/0!"}]
[null,null,null,null,null,null,{"$error":"#DIV/0!"},"no",null,{"$error":"#DIV/0!"}]
[null,null,null,null,null,null,{"$error":"#DIV/0!"},"no",null,{"$error":"#DIV/0!"}]
[null,null,null,null,null,null,{"$error":"#DIV/0!"},"no",null,{"$error":"#DIV/0!"}]
[null,null,null,null,null,null,{"$error":"#DIV/0!"},"no",null,{"$error":"#DIV/0!"}]
[null,null,null,null,null,null,{"$error":"#DIV/0!"},"no",null,{"$error":"#DIV/0!"}]
[null,null,null,null,null,null,{"$error":"#DIV/0!"},"no",null,{"$error":"#DIV/0!"}]
[null,null,null,null,null,null,{"$error":"#DIV/0!"},"no",null,{"$error":"#DIV/0!"}]
[null,null,null,null,null,null,{"$error":"#DIV/0!"},"no",null,{"$error":"#DIV/0!"}]
[null,null,null,null,null,null,{"$f":"ROUND(AVERAGE(E716:F716),2)","v":{"$error":"#DIV/0!"}},"no",null,{"$f":"IF(I716=\"SI\",IF(H716=\"yes\",\"Excluded Area\",IF(G716<0.55,50,IF(G716<0.71,30,IF(G716<1.05,0,IF(G716<1.55,(740-740*G716),-500))))),IF(I716=\"SII\",IF(H716=\"yes\",\"Excluded Area\",IF(G716<0.55,50,IF(G716<0.81,30, IF(G716<1.21,0, IF(G716<1.55,(1090-930*G716),-500))))),IF(H716=\"yes\",\"Excluded Area\",IF(G716<0.55,50,IF(G716<0.81,30, IF(G716<1.55,0, IF(G716<=1.85,(740-490*G716),-500)))))))","v":{"$error":"#DIV/0!"}}]
[null,null,null,null,null,null,{"$error":"#DIV/0!"},"no",null,{"$error":"#DIV/0!"}]
[null,null,null,null,null,null,{"$error":"#DIV/0!"},"no",null,{"$error":"#DIV/0!"}]
[null,null,null,null,null,null,{"$error":"#DIV/0!"},"no",null,{"$error":"#DIV/0!"}]
[null,null,null,null,null,null,{"$error":"#DIV/0!"},"no",null,{"$error":"#DIV/0!"}]
[null,null,null,null,null,null,{"$error":"#DIV/0!"},"no",null,{"$error":"#DIV/0!"}]
[null,null,null,null,null,null,{"$error":"#DIV/0!"},"no",null,{"$error":"#DIV/0!"}]
[null,null,null,null,null,null,{"$error":"#DIV/0!"},"no",null,{"$error":"#DIV/0!"}]
[null,null,null,null,null,null,{"$error":"#DIV/0!"},"no",null,{"$error":"#DIV/0!"}]
[null,null,null,null,null,null,{"$error":"#DIV/0!"},"no",null,{"$error":"#DIV/0!"}]
[null,null,null,null,null,null,{"$error":"#DIV/0!"},"no",null,{"$error":"#DIV/0!"}]
[null,null,null,null,null,null,{"$error":"#DIV/0!"},"no",null,{"$error":"#DIV/0!"}]
[null,null,null,null,null,null,{"$error":"#DIV/0!"},"no",null,{"$error":"#DIV/0!"}]
[null,null,null,null,null,null,{"$error":"#DIV/0!"},"no",null,{"$error":"#DIV/0!"}]
[null,null,null,null,null,null,{"$error":"#DIV/0!"},"no",null,{"$error":"#DIV/0!"}]
[null,null,null,null,null,null,{"$error":"#DIV/0!"},"no",null,{"$error":"#DIV/0!"}]
[null,null,null,null,null,null,{"$error":"#DIV/0!"},"no",null,{"$error":"#DIV/0!"}]
[null,null,null,null,null,null,{"$error":"#DIV/0!"},"no",null,{"$error":"#DIV/0!"}]
[null,null,null,null,null,null,{"$error":"#DIV/0!"},"no",null,{"$error":"#DIV/0!"}]
[null,null,null,null,null,null,{"$error":"#DIV/0!"},"no",null,{"$error":"#DIV/0!"}]
[null,null,null,null,null,null,{"$error":"#DIV/0!"},"no",null,{"$error":"#DIV/0!"}]
[null,null,null,null,null,null,{"$error":"#DIV/0!"},"no",null,{"$error":"#DIV/0!"}]
[null,null,null,null,null,null,{"$error":"#DIV/0!"},"no",null,{"$error":"#DIV/0!"}]
[null,null,null,null,null,null,{"$error":"#DIV/0!"},"no",null,{"$error":"#DIV/0!"}]
[null,null,null,null,null,null,{"$error":"#DIV/0!"},"no",null,{"$error":"#DIV/0!"}]
[null,null,null,null,null,null,{"$error":"#DIV/0!"},"no",null,{"$error":"#DIV/0!"}]
[null,null,null,null,null,null,{"$error":"#DIV/0!"},"no",null,{"$error":"#DIV/0!"}]
[null,null,null,null,null,null,{"$error":"#DIV/0!"},"no",null,{"$error":"#DIV/0!"}]
[null,null,null,null,null,null,{"$error":"#DIV/0!"},"no",null,{"$error":"#DIV/0!"}]
[null,null,null,null,null,null,{"$error":"#DIV/0!"},"no",null,{"$error":"#DIV/0!"}]
[null,null,null,null,null,null,{"$error":"#DIV/0!"},"no",null,{"$error":"#DIV/0!"}]
[null,null,null,null,null,null,{"$error":"#DIV/0!"},"no",null,{"$error":"#DIV/0!"}]
[null,null,null,null,null,null,{"$error":"#DIV/0!"},"no",null,{"$error":"#DIV/0!"}]
[null,null,null,null,null,null,{"$error":"#DIV/0!"},"no",null,{"$error":"#DIV/0!"}]
[null,null,null,null,null,null,{"$error":"#DIV/0!"},"no",null,{"$error":"#DIV/0!"}]
[null,null,null,null,null,null,{"$error":"#DIV/0!"},"no",null,{"$error":"#DIV/0!"}]
[null,null,null,null,null,null,{"$error":"#DIV/0!"},"no",null,{"$error":"#DIV/0!"}]
[null,null,null,null,null,null,{"$error":"#DIV/0!"},"no",null,{"$error":"#DIV/0!"}]
[null,null,null,null,null,null,{"$error":"#DIV/0!"},"no",null,{"$error":"#DIV/0!"}]
[null,null,null,null,null,null,{"$error":"#DIV/0!"},"no",null,{"$error":"#DIV/0!"}]
[null,null,null,null,null,null,{"$error":"#DIV/0!"},"no",null,{"$error":"#DIV/0!"}]
[null,null,null,null,null,null,{"$error":"#DIV/0!"},"no",null,{"$error":"#DIV/0!"}]
[null,null,null,null,null,null,{"$error":"#DIV/0!"},"no",null,{"$error":"#DIV/0!"}]
[null,null,null,null,null,null,{"$error":"#DIV/0!"},"no",null,{"$error":"#DIV/0!"}]
[null,null,null,null,null,null,{"$error":"#DIV/0!"},"no",null,{"$error":"#DIV/0!"}]
[null,null,null,null,null,null,{"$error":"#DIV/0!"},"no",null,{"$error":"#DIV/0!"}]
[null,null,null,null,null,null,{"$error":"#DIV/0!"},"no",null,{"$error":"#DIV/0!"}]
[null,null,null,null,null,null,{"$error":"#DIV/0!"},"no",null,{"$error":"#DIV/0!"}]
[null,null,null,null,null,null,{"$error":"#DIV/0!"},"no",null,{"$error":"#DIV/0!"}]
[null,null,null,null,null,null,{"$error":"#DIV/0!"},"no",null,{"$error":"#DIV/0!"}]
[null,null,null,null,null,null,{"$error":"#DIV/0!"},"no",null,{"$error":"#DIV/0!"}]
[null,null,null,null,null,null,{"$error":"#DIV/0!"},"no",null,{"$error":"#DIV/0!"}]
[null,null,null,null,null,null,{"$error":"#DIV/0!"},"no",null,{"$error":"#DIV/0!"}]
[null,null,null,null,null,null,{"$error":"#DIV/0!"},"no",null,{"$error":"#DIV/0!"}]
[null,null,null,null,null,null,{"$error":"#DIV/0!"},"no",null,{"$error":"#DIV/0!"}]
[null,null,null,null,null,null,{"$error":"#DIV/0!"},"no",null,{"$error":"#DIV/0!"}]
[null,null,null,null,null,null,{"$error":"#DIV/0!"},"no",null,{"$error":"#DIV/0!"}]
[null,null,null,null,null,null,{"$error":"#DIV/0!"},"no",null,{"$error":"#DIV/0!"}]
[null,null,null,null,null,null,{"$error":"#DIV/0!"},"no",null,{"$error":"#DIV/0!"}]
[null,null,null,null,null,null,{"$error":"#DIV/0!"},"no",null,{"$error":"#DIV/0!"}]
[null,null,null,null,null,null,{"$error":"#DIV/0!"},"no",null,{"$error":"#DIV/0!"}]
[null,null,null,null,null,null,{"$error":"#DIV/0!"},"no",null,{"$error":"#DIV/0!"}]
[null,null,null,null,null,null,{"$error":"#DIV/0!"},"no",null,{"$error":"#DIV/0!"}]
[null,null,null,null,null,null,{"$error":"#DIV/0!"},"no",null,{"$error":"#DIV/0!"}]
[null,null,null,null,null,null,{"$f":"ROUND(AVERAGE(E780:F780),2)","v":{"$error":"#DIV/0!"}},"no",null,{"$f":"IF(I780=\"SI\",IF(H780=\"yes\",\"Excluded Area\",IF(G780<0.55,50,IF(G780<0.71,30,IF(G780<1.05,0,IF(G780<1.55,(740-740*G780),-500))))),IF(I780=\"SII\",IF(H780=\"yes\",\"Excluded Area\",IF(G780<0.55,50,IF(G780<0.81,30, IF(G780<1.21,0, IF(G780<1.55,(1090-930*G780),-500))))),IF(H780=\"yes\",\"Excluded Area\",IF(G780<0.55,50,IF(G780<0.81,30, IF(G780<1.55,0, IF(G780<=1.85,(740-490*G780),-500)))))))","v":{"$error":"#DIV/0!"}}]
[null,null,null,null,null,null,{"$error":"#DIV/0!"},"no",null,{"$error":"#DIV/0!"}]
[null,null,null,null,null,null,{"$error":"#DIV/0!"},"no",null,{"$error":"#DIV/0!"}]
[null,null,null,null,null,null,{"$error":"#DIV/0!"},"no",null,{"$error":"#DIV/0!"}]
[null,null,null,null,null,null,{"$error":"#DIV/0!"},"no",null,{"$error":"#DIV/0!"}]
[null,null,null,null,null,null,{"$error":"#DIV/0!"},"no",null,{"$error":"#DIV/0!"}]
[null,null,null,null,null,null,{"$error":"#DIV/0!"},"no",null,{"$error":"#DIV/0!"}]
[null,null,null,null,null,null,{"$error":"#DIV/0!"},"no",null,{"$error":"#DIV/0!"}]
[null,null,null,null,null,null,{"$error":"#DIV/0!"},"no",null,{"$error":"#DIV/0!"}]
[null,null,null,null,null,null,{"$error":"#DIV/0!"},"no",null,{"$error":"#DIV/0!"}]
[null,null,null,null,null,null,{"$error":"#DIV/0!"},"no",null,{"$error":"#DIV/0!"}]
[null,null,null,null,null,null,{"$error":"#DIV/0!"},"no",null,{"$error":"#DIV/0!"}]
[null,null,null,null,null,null,{"$error":"#DIV/0!"},"no",null,{"$error":"#DIV/0!"}]
[null,null,null,null,null,null,{"$error":"#DIV/0!"},"no",null,{"$error":"#DIV/0!"}]
[null,null,null,null,null,null,{"$error":"#DIV/0!"},"no",null,{"$error":"#DIV/0!"}]
[null,null,null,null,null,null,{"$error":"#DIV/0!"},"no",null,{"$error":"#DIV/0!"}]
[null,null,null,null,null,null,{"$error":"#DIV/0!"},"no",null,{"$error":"#DIV/0!"}]
[null,null,null,null,null,null,{"$error":"#DIV/0!"},"no",null,{"$error":"#DIV/0!"}]
[null,null,null,null,null,null,{"$error":"#DIV/0!"},"no",null,{"$error":"#DIV/0!"}]
[null,null,null,null,null,null,{"$error":"#DIV/0!"},"no",null,{"$error":"#DIV/0!"}]
[null,null,null,null,null,null,{"$error":"#DIV/0!"},"no",null,{"$error":"#DIV/0!"}]
[null,null,null,null,null,null,{"$error":"#DIV/0!"},"no",null,{"$error":"#DIV/0!"}]
[null,null,null,null,null,null,{"$error":"#DIV/0!"},"no",null,{"$error":"#DIV/0!"}]
[null,null,null,null,null,null,{"$error":"#DIV/0!"},"no",null,{"$error":"#DIV/0!"}]
[null,null,null,null,null,null,{"$error":"#DIV/0!"},"no",null,{"$error":"#DIV/0!"}]
[null,null,null,null,null,null,{"$error":"#DIV/0!"},"no",null,{"$error":"#DIV/0!"}]
[null,null,null,null,null,null,{"$error":"#DIV/0!"},"no",null,{"$error":"#DIV/0!"}]
[null,null,null,null,null,null,{"$error":"#DIV/0!"},"no",null,{"$error":"#DIV/0!"}]
[null,null,null,null,null,null,{"$error":"#DIV/0!"},"no",null,{"$error":"#DIV/0!"}]
[null,null,null,null,null,null,{"$error":"#DIV/0!"},"no",null,{"$error":"#DIV/0!"}]
[null,null,null,null,null,null,{"$error":"#DIV/0!"},"no",null,{"$error":"#DIV/0!"}]
[null,null,null,null,null,null,{"$error":"#DIV/0!"},"no",null,{"$error":"#DIV/0!"}]
[null,null,null,null,null,null,{"$error":"#DIV/0!"},"no",null,{"$error":"#DIV/0!"}]
[null,null,null,null,null,null,{"$error":"#DIV/0!"},"no",null,{"$error":"#DIV/0!"}]
[null,null,null,null,null,null,{"$error":"#DIV/0!"},"no",null,{"$error":"#DIV/0!"}]
[null,null,null,null,null,null,{"$error":"#DIV/0!"},"no",null,{"$error":"#DIV/0!"}]
[null,null,null,null,null,null,{"$error":"#DIV/0!"},"no",null,{"$error":"#DIV/0!"}]
[null,null,null,null,null,null,{"$error":"#DIV/0!"},"no",null,{"$error":"#DIV/0!"}]
[null,null,null,null,null,null,{"$error":"#DIV/0!"},"no",null,{"$error":"#DIV/0!"}]
[null,null,null,null,null,null,{"$error":"#DIV/0!"},"no",null,{"$error":"#DIV/0!"}]
[null,null,null,null,null,null,{"$error":"#DIV/0!"},"no",null,{"$error":"#DIV/0!"}]
[null,null,null,null,null,null,{"$error":"#DIV/0!"},"no",null,{"$error":"#DIV/0!"}]
[null,null,null,null,null,null,{"$error":"#DIV/0!"},"no",null,{"$error":"#DIV/0!"}]
[null,null,null,null,null,null,{"$error":"#DIV/0!"},"no",null,{"$error":"#DIV/0!"}]
[null,null,null,null,null,null,{"$error":"#DIV/0!"},"no",null,{"$error":"#DIV/0!"}]
[null,null,null,null,null,null,{"$error":"#DIV/0!"},"no",null,{"$error":"#DIV/0!"}]
[null,null,null,null,null,null,{"$error":"#DIV/0!"},"no",null,{"$error":"#DIV/0!"}]
[null,null,null,null,null,null,{"$error":"#DIV/0!"},"no",null,{"$error":"#DIV/0!"}]
[null,null,null,null,null,null,{"$error":"#DIV/0!"},"no",null,{"$error":"#DIV/0!"}]
[null,null,null,null,null,null,{"$error":"#DIV/0!"},"no",null,{"$error":"#DIV/0!"}]
[null,null,null,null,null,null,{"$error":"#DIV/0!"},"no",null,{"$error":"#DIV/0!"}]
[null,null,null,null,null,null,{"$error":"#DIV/0!"},"no",null,{"$error":"#DIV/0!"}]
[null,null,null,null,null,null,{"$error":"#DIV/0!"},"no",null,{"$error":"#DIV/0!"}]
[null,null,null,null,null,null,{"$error":"#DIV/0!"},"no",null,{"$error":"#DIV/0!"}]
[null,null,null,null,null,null,{"$error":"#DIV/0!"},"no",null,{"$error":"#DIV/0!"}]
[null,null,null,null,null,null,{"$error":"#DIV/0!"},"no",null,{"$error":"#DIV/0!"}]
[null,null,null,null,null,null,{"$error":"#DIV/0!"},"no",null,{"$error":"#DIV/0!"}]
[null,null,null,null,null,null,{"$error":"#DIV/0!"},"no",null,{"$error":"#DIV/0!"}]
[null,null,null,null,null,null,{"$error":"#DIV/0!"},"no",null,{"$error":"#DIV/0!"}]
[null,null,null,null,null,null,{"$error":"#DIV/0!"},"no",null,{"$error":"#DIV/0!"}]
[null,null,null,null,null,null,{"$error":"#DIV/0!"},"no",null,{"$error":"#DIV/0!"}]
[null,null,null,null,null,null,{"$error":"#DIV/0!"},"no",null,{"$error":"#DIV/0!"}]
[null,null,null,null,null,null,{"$error":"#DIV/0!"},"no",null,{"$error":"#DIV/0!"}]
[null,null,null,null,null,null,{"$error":"#DIV/0!"},"no",null,{"$error":"#DIV/0!"}]
[null,null,null,null,null,null,{"$f":"ROUND(AVERAGE(E844:F844),2)","v":{"$error":"#DIV/0!"}},"no",null,{"$f":"IF(I844=\"SI\",IF(H844=\"yes\",\"Excluded Area\",IF(G844<0.55,50,IF(G844<0.71,30,IF(G844<1.05,0,IF(G844<1.55,(740-740*G844),-500))))),IF(I844=\"SII\",IF(H844=\"yes\",\"Excluded Area\",IF(G844<0.55,50,IF(G844<0.81,30, IF(G844<1.21,0, IF(G844<1.55,(1090-930*G844),-500))))),IF(H844=\"yes\",\"Excluded Area\",IF(G844<0.55,50,IF(G844<0.81,30, IF(G844<1.55,0, IF(G844<=1.85,(740-490*G844),-500)))))))","v":{"$error":"#DIV/0!"}}]
[null,null,null,null,null,null,{"$error":"#DIV/0!"},"no",null,{"$error":"#DIV/0!"}]
[null,null,null,null,null,null,{"$error":"#DIV/0!"},"no",null,{"$error":"#DIV/0!"}]
[null,null,null,null,null,null,{"$error":"#DIV/0!"},"no",null,{"$error":"#DIV/0!"}]
[null,null,null,null,null,null,{"$error":"#DIV/0!"},"no",null,{"$error":"#DIV/0!"}]
[null,null,null,null,null,null,{"$error":"#DIV/0!"},"no",null,{"$error":"#DIV/0!"}]
[null,null,null,null,null,null,{"$error":"#DIV/0!"},"no",null,{"$error":"#DIV/0!"}]
[null,null,null,null,null,null,{"$error":"#DIV/0!"},"no",null,{"$error":"#DIV/0!"}]
[null,null,null,null,null,null,{"$error":"#DIV/0!"},"no",null,{"$error":"#DIV/0!"}]
[null,null,null,null,null,null,{"$error":"#DIV/0!"},"no",null,{"$error":"#DIV/0!"}]
[null,null,null,null,null,null,{"$error":"#DIV/0!"},"no",null,{"$error":"#DIV/0!"}]
[null,null,null,null,null,null,{"$error":"#DIV/0!"},"no",null,{"$error":"#DIV/0!"}]
[null,null,null,null,null,null,{"$error":"#DIV/0!"},"no",null,{"$error":"#DIV/0!"}]
[null,null,null,null,null,null,{"$error":"#DIV/0!"},"no",null,{"$error":"#DIV/0!"}]
[null,null,null,null,null,null,{"$error":"#DIV/0!"},"no",null,{"$error":"#DIV/0!"}]
[null,null,null,null,null,null,{"$error":"#DIV/0!"},"no",null,{"$error":"#DIV/0!"}]
[null,null,null,null,null,null,{"$error":"#DIV/0!"},"no",null,{"$error":"#DIV/0!"}]
[null,null,null,null,null,null,{"$error":"#DIV/0!"},"no",null,{"$error":"#DIV/0!"}]
[null,null,null,null,null,null,{"$error":"#DIV/0!"},"no",null,{"$error":"#DIV/0!"}]
[null,null,null,null,null,null,{"$error":"#DIV/0!"},"no",null,{"$error":"#DIV/0!"}]
[null,null,null,null,null,null,{"$error":"#DIV/0!"},"no",null,{"$error":"#DIV/0!"}]
[null,null,null,null,null,null,{"$error":"#DIV/0!"},"no",null,{"$error":"#DIV/0!"}]
[null,null,null,null,null,null,{"$error":"#DIV/0!"},"no",null,{"$error":"#DIV/0!"}]
[null,null,null,null,null,null,{"$error":"#DIV/0!"},"no",null,{"$error":"#DIV/0!"}]
[null,null,null,null,null,null,{"$error":"#DIV/0!"},"no",null,{"$error":"#DIV/0!"}]
[null,null,null,null,null,null,{"$error":"#DIV/0!"},"no",null,{"$error":"#DIV/0!"}]
[null,null,null,null,null,null,{"$error":"#DIV/0!"},"no",null,{"$error":"#DIV/0!"}]
[null,null,null,null,null,null,{"$error":"#DIV/0!"},"no",null,{"$error":"#DIV/0!"}]
[null,null,null,null,null,null,{"$error":"#DIV/0!"},"no",null,{"$error":"#DIV/0!"}]
[null,null,null,null,null,null,{"$error":"#DIV/0!"},"no",null,{"$error":"#DIV/0!"}]
[null,null,null,null,null,null,{"$error":"#DIV/0!"},"no",null,{"$error":"#DIV/0!"}]
[null,null,null,null,null,null,{"$error":"#DIV/0!"},"no",null,{"$error":"#DIV/0!"}]
[null,null,null,null,null,null,{"$error":"#DIV/0!"},"no",null,{"$error":"#DIV/0!"}]
[null,null,null,null,null,null,{"$error":"#DIV/0!"},"no",null,{"$error":"#DIV/0!"}]
[null,null,null,null,null,null,{"$error":"#DIV/0!"},"no",null,{"$error":"#DIV/0!"}]
[null,null,null,null,null,null,{"$error":"#DIV/0!"},"no",null,{"$error":"#DIV/0!"}]
[null,null,null,null,null,null,{"$error":"#DIV/0!"},"no",null,{"$error":"#DIV/0!"}]
[null,null,null,null,null,null,{"$error":"#DIV/0!"},"no",null,{"$error":"#DIV/0!"}]
[null,null,null,null,null,null,{"$error":"#DIV/0!"},"no",null,{"$error":"#DIV/0!"}]
[null,null,null,null,null,null,{"$error":"#DIV/0!"},"no",null,{"$error":"#DIV/0!"}]
[null,null,null,null,null,null,{"$error":"#DIV/0!"},"no",null,{"$error":"#DIV/0!"}]
[null,null,null,null,null,null,{"$error":"#DIV/0!"},"no",null,{"$error":"#DIV/0!"}]
[null,null,null,null,null,null,{"$error":"#DIV/0!"},"no",null,{"$error":"#DIV/0!"}]
[null,null,null,null,null,null,{"$error":"#DIV/0!"},"no",null,{"$error":"#DIV/0!"}]
[null,null,null,null,null,null,{"$error":"#DIV/0!"},"no",null,{"$error":"#DIV/0!"}]
[null,null,null,null,null,null,{"$error":"#DIV/0!"},"no",null,{"$error":"#DIV/0!"}]
[null,null,null,null,null,null,{"$error":"#DIV/0!"},"no",null,{"$error":"#DIV/0!"}]
[null,null,null,null,null,null,{"$error":"#DIV/0!"},"no",null,{"$error":"#DIV/0!"}]
[null,null,null,null,null,null,{"$error":"#DIV/0!"},"no",null,{"$error":"#DIV/0!"}]
[null,null,null,null,null,null,{"$error":"#DIV/0!"},"no",null,{"$error":"#DIV/0!"}]
[null,null,null,null,null,null,{"$error":"#DIV/0!"},"no",null,{"$error":"#DIV/0!"}]
[null,null,null,null,null,null,{"$error":"#DIV/0!"},"no",null,{"$error":"#DIV/0!"}]
[null,null,null,null,null,null,{"$error":"#DIV/0!"},"no",null,{"$error":"#DIV/0!"}]
[null,null,null,null,null,null,{"$error":"#DIV/0!"},"no",null,{"$error":"#DIV/0!"}]
[null,null,null,null,null,null,{"$error":"#DIV/0!"},"no",null,{"$error":"#DIV/0!"}]
[null,null,null,null,null,null,{"$error":"#DIV/0!"},"no",null,{"$error":"#DIV/0!"}]
[null,null,null,null,null,null,{"$error":"#DIV/0!"},"no",null,{"$error":"#DIV/0!"}]
[null,null,null,null,null,null,{"$error":"#DIV/0!"},"no",null,{"$error":"#DIV/0!"}]
[null,null,null,null,null,null,{"$error":"#DIV/0!"},"no",null,{"$error":"#DIV/0!"}]
[null,null,null,null,null,null,{"$error":"#DIV/0!"},"no",null,{"$error":"#DIV/0!"}]
[null,null,null,null,null,null,{"$error":"#DIV/0!"},"no",null,{"$error":"#DIV/0!"}]
[null,null,null,null,null,null,{"$error":"#DIV/0!"},"no",null,{"$error":"#DIV/0!"}]
[null,null,null,null,null,null,{"$error":"#DIV/0!"},"no",null,{"$error":"#DIV/0!"}]
[null,null,null,null,null,null,{"$error":"#DIV/0!"},"no",null,{"$error":"#DIV/0!"}]
[null,null,null,null,null,null,{"$f":"ROUND(AVERAGE(E908:F908),2)","v":{"$error":"#DIV/0!"}},"no",null,{"$f":"IF(I908=\"SI\",IF(H908=\"yes\",\"Excluded Area\",IF(G908<0.55,50,IF(G908<0.71,30,IF(G908<1.05,0,IF(G908<1.55,(740-740*G908),-500))))),IF(I908=\"SII\",IF(H908=\"yes\",\"Excluded Area\",IF(G908<0.55,50,IF(G908<0.81,30, IF(G908<1.21,0, IF(G908<1.55,(1090-930*G908),-500))))),IF(H908=\"yes\",\"Excluded Area\",IF(G908<0.55,50,IF(G908<0.81,30, IF(G908<1.55,0, IF(G908<=1.85,(740-490*G908),-500)))))))","v":{"$error":"#DIV/0!"}}]
[null,null,null,null,null,null,{"$error":"#DIV/0!"},"no",null,{"$error":"#DIV/0!"}]
[null,null,null,null,null,null,{"$error":"#DIV/0!"},"no",null,{"$error":"#DIV/0!"}]
[null,null,null,null,null,null,{"$error":"#DIV/0!"},"no",null,{"$error":"#DIV/0!"}]
[null,null,null,null,null,null,{"$error":"#DIV/0!"},"no",null,{"$error":"#DIV/0!"}]
[null,null,null,null,null,null,{"$error":"#DIV/0!"},"no",null,{"$error":"#DIV/0!"}]
[null,null,null,null,null,null,{"$error":"#DIV/0!"},"no",null,{"$error":"#DIV/0!"}]
[null,null,null,null,null,null,{"$error":"#DIV/0!"},"no",null,{"$error":"#DIV/0!"}]
[null,null,null,null,null,null,{"$error":"#DIV/0!"},"no",null,{"$error":"#DIV/0!"}]
[null,null,null,null,null,null,{"$error":"#DIV/0!"},"no",null,{"$error":"#DIV/0!"}]
[null,null,null,null,null,null,{"$error":"#DIV/0!"},"no",null,{"$error":"#DIV/0!"}]
[null,null,null,null,null,null,{"$error":"#DIV/0!"},"no",null,{"$error":"#DIV/0!"}]
[null,null,null,null,null,null,{"$error":"#DIV/0!"},"no",null,{"$error":"#DIV/0!"}]
[null,null,null,null,null,null,{"$error":"#DIV/0!"},"no",null,{"$error":"#DIV/0!"}]
[null,null,null,null,null,null,{"$error":"#DIV/0!"},"no",null,{"$error":"#DIV/0!"}]
[null,null,null,null,null,null,{"$error":"#DIV/0!"},"no",null,{"$error":"#DIV/0!"}]
[null,null,null,null,null,null,{"$error":"#DIV/0!"},"no",null,{"$error":"#DIV/0!"}]
[null,null,null,null,null,null,{"$error":"#DIV/0!"},"no",null,{"$error":"#DIV/0!"}]
[null,null,null,null,null,null,{"$error":"#DIV/0!"},"no",null,{"$error":"#DIV/0!"}]
[null,null,null,null,null,null,{"$error":"#DIV/0!"},"no",null,{"$error":"#DIV/0!"}]
[null,null,null,null,null,null,{"$error":"#DIV/0!"},"no",null,{"$error":"#DIV/0!"}]
[null,null,null,null,null,null,{"$error":"#DIV/0!"},"no",null,{"$error":"#DIV/0!"}]
[null,null,null,null,null,null,{"$error":"#DIV/0!"},"no",null,{"$error":"#DIV/0!"}]
[null,null,null,null,null,null,{"$error":"#DIV/0!"},"no",null,{"$error":"#DIV/0!"}]
[null,null,null,null,null,null,{"$error":"#DIV/0!"},"no",null,{"$error":"#DIV/0!"}]
[null,null,null,null,null,null,{"$error":"#DIV/0!"},"no",null,{"$error":"#DIV/0!"}]
[null,null,null,null,null,null,{"$error":"#DIV/0!"},"no",null,{"$error":"#DIV/0!"}]
[null,null,null,null,null,null,{"$error":"#DIV/0!"},"no",null,{"$error":"#DIV/0!"}]
[null,null,null,null,null,null,{"$error":"#DIV/0!"},"no",null,{"$error":"#DIV/0!"}]
[null,null,null,null,null,null,{"$error":"#DIV/0!"},"no",null,{"$error":"#DIV/0!"}]
[null,null,null,null,null,null,{"$error":"#DIV/0!"},"no",null,{"$error":"#DIV/0!"}]
[null,null,null,null,null,null,{"$error":"#DIV/0!"},"no",null,{"$error":"#DIV/0!"}]
[null,null,null,null,null,null,{"$error":"#DIV/0!"},"no",null,{"$error":"#DIV/0!"}]
[null,null,null,null,null,null,{"$error":"#DIV/0!"},"no",null,{"$error":"#DIV/0!"}]
[null,null,null,null,null,null,{"$error":"#DIV/0!"},"no",null,{"$error":"#DIV/0!"}]
[null,null,null,null,null,null,{"$error":"#DIV/0!"},"no",null,{"$error":"#DIV/0!"}]
[null,null,null,null,null,null,{"$error":"#DIV/0!"},"no",null,{"$error":"#DIV/0!"}]
[null,null,null,null,null,null,{"$error":"#DIV/0!"},"no",null,{"$error":"#DIV/0!"}]
[null,null,null,null,null,null,{"$error":"#DIV/0!"},"no",null,{"$error":"#DIV/0!"}]
[null,null,null,null,null,null,{"$error":"#DIV/0!"},"no",null,{"$error":"#DIV/0!"}]
[null,null,null,null,null,null,{"$error":"#DIV/0!"},"no",null,{"$error":"#DIV/0!"}]
[null,null,null,null,null,null,{"$error":"#DIV/0!"},"no",null,{"$error":"#DIV/0!"}]
[null,null,null,null,null,null,{"$error":"#DIV/0!"},"no",null,{"$error":"#DIV/0!"}]
[null,null,null,null,null,null,{"$error":"#DIV/0!"},"no",null,{"$error":"#DIV/0!"}]
[null,null,null,null,null,null,{"$error":"#DIV/0!"},"no",null,{"$error":"#DIV/0!"}]
[null,null,null,null,null,null,{"$error":"#DIV/0!"},"no",null,{"$error":"#DIV/0!"}]
[null,null,null,null,null,null,{"$error":"#DIV/0!"},"no",null,{"$error":"#DIV/0!"}]
[null,null,null,null,null,null,{"$error":"#DIV/0!"},"no",null,{"$error":"#DIV/0!"}]
[null,null,null,null,null,null,{"$error":"#DIV/0!"},"no",null,{"$error":"#DIV/0!"}]
[null,null,null,null,null,null,{"$error":"#DIV/0!"},"no",null,{"$error":"#DIV/0!"}]
[null,null,null,null,null,null,{"$error":"#DIV/0!"},"no",null,{"$error":"#DIV/0!"}]
[null,null,null,null,null,null,{"$error":"#DIV/0!"},"no",null,{"$error":"#DIV/0!"}]
[null,null,null,null,null,null,{"$error":"#DIV/0!"},"no",null,{"$error":"#DIV/0!"}]
[null,null,null,null,null,null,{"$error":"#DIV/0!"},"no",null,{"$error":"#DIV/0!"}]
[null,null,null,null,null,null,{"$error":"#DIV/0!"},"no",null,{"$error":"#DIV/0!"}]
[null,null,null,null,null,null,{"$error":"#DIV/0!"},"no",null,{"$error":"#DIV/0!"}]
[null,null,null,null,null,null,{"$error":"#DIV/0!"},"no",null,{"$error":"#DIV/0!"}]
[null,null,null,null,null,null,{"$error":"#DIV/0!"},"no",null,{"$error":"#DIV/0!"}]
[null,null,null,null,null,null,{"$error":"#DIV/0!"},"no",null,{"$error":"#DIV/0!"}]
[null,null,null,null,null,null,{"$error":"#DIV/0!"},"no",null,{"$error":"#DIV/0!"}]
[null,null,null,null,null,null,{"$error":"#DIV/0!"},"no",null,{"$error":"#DIV/0!"}]
[null,null,null,null,null,null,{"$error":"#DIV/0!"},"no",null,{"$error":"#DIV/0!"}]
[null,null,null,null,null,null,{"$error":"#DIV/0!"},"no",null,{"$error":"#DIV/0!"}]
[null,null,null,null,null,null,{"$error":"#DIV/0!"},"no",null,{"$error":"#DIV/0!"}]
[null,null,null,null,null,null,{"$f":"ROUND(AVERAGE(E972:F972),2)","v":{"$error":"#DIV/0!"}},"no",null,{"$f":"IF(I972=\"SI\",IF(H972=\"yes\",\"Excluded Area\",IF(G972<0.55,50,IF(G972<0.71,30,IF(G972<1.05,0,IF(G972<1.55,(740-740*G972),-500))))),IF(I972=\"SII\",IF(H972=\"yes\",\"Excluded Area\",IF(G972<0.55,50,IF(G972<0.81,30, IF(G972<1.21,0, IF(G972<1.55,(1090-930*G972),-500))))),IF(H972=\"yes\",\"Excluded Area\",IF(G972<0.55,50,IF(G972<0.81,30, IF(G972<1.55,0, IF(G972<=1.85,(740-490*G972),-500)))))))","v":{"$error":"#DIV/0!"}}]
[null,null,null,null,null,null,{"$error":"#DIV/0!"},"no",null,{"$error":"#DIV/0!"}]
[null,null,null,null,null,null,{"$error":"#DIV/0!"},"no",null,{"$error":"#DIV/0!"}]
[null,null,null,null,null,null,{"$error":"#DIV/0!"},"no",null,{"$error":"#DIV/0!"}]
[null,null,null,null,null,null,{"$error":"#DIV/0!"},"no",null,{"$error":"#DIV/0!"}]
[null,null,null,null,null,null,{"$error":"#DIV/0!"},"no",null,{"$error":"#DIV/0!"}]
[null,null,null,null,null,null,{"$error":"#DIV/0!"},"no",null,{"$error":"#DIV/0!"}]
[null,null,null,null,null,null,{"$error":"#DIV/0!"},"no",null,{"$error":"#DIV/0!"}]
[null,null,null,null,null,null,{"$error":"#DIV/0!"},"no",null,{"$error":"#DIV/0!"}]
[null,null,null,null,null,null,{"$error":"#DIV/0!"},"no",null,{"$error":"#DIV/0!"}]
[null,null,null,null,null,null,{"$error":"#DIV/0!"},"no",null,{"$error":"#DIV/0!"}]
[null,null,null,null,null,null,{"$error":"#DIV/0!"},"no",null,{"$error":"#DIV/0!"}]
[null,null,null,null,null,null,{"$error":"#DIV/0!"},"no",null,{"$error":"#DIV/0!"}]
[null,null,null,null,null,null,{"$error":"#DIV/0!"},"no",null,{"$error":"#DIV/0!"}]
[null,null,null,null,null,null,{"$error":"#DIV/0!"},"no",null,{"$error":"#DIV/0!"}]
[null,null,null,null,null,null,{"$error":"#DIV/0!"},"no",null,{"$error":"#DIV/0!"}]
[null,null,null,null,null,null,{"$error":"#DIV/0!"},"no",null,{"$error":"#DIV/0!"}]
[null,null,null,null,null,null,{"$error":"#DIV/0!"},"no",null,{"$error":"#DIV/0!"}]
[null,null,null,null,null,null,{"$error":"#DIV/0!"},"no",null,{"$error":"#DIV/0!"}]
[null,null,null,null,null,null,{"$error":"#DIV/0!"},"no",null,{"$error":"#DIV/0!"}]
[null,null,null,null,null,null,{"$error":"#DIV/0!"},"no",null,{"$error":"#DIV/0!"}]
[null,null,null,null,null,null,{"$error":"#DIV/0!"},"no",null,{"$error":"#DIV/0!"}]
[null,null,null,null,null,null,{"$error":"#DIV/0!"},"no",null,{"$error":"#DIV/0!"}]
[null,null,null,null,null,null,{"$error":"#DIV/0!"},"no",null,{"$error":"#DIV/0!"}]
[null,null,null,null,null,null,{"$error":"#DIV/0!"},"no",null,{"$error":"#DIV/0!"}]
[null,null,null,null,null,null,{"$error":"#DIV/0!"},"no",null,{"$error":"#DIV/0!"}]
[null,null,null,null,null,null,{"$error":"#DIV/0!"},"no",null,{"$error":"#DIV/0!"}]
[null,null,null,null,null,null,{"$error":"#DIV/0!"},"no",null,{"$error":"#DIV/0!"}]
[null,null,null,null,null,null,null,"no",null,50]

{"sheet":"ALR","index":3,"n_rows":300,"n_cols":15,"rows_kept":300,"cut":false,"hidden":false,"merged":[]}
[null,null,null,"Contract No:",{"$f":"IRI!G1","v":0},"Type of Test:"]
[null,null,null,"Hwy Number",{"$f":"IRI!G2","v":0},"Contractor:",{"$f":"IRI!I2","v":0}]
[null,null,null,"Control Section",{"$f":"IRI!G3","v":0},"IP Operator:",{"$f":"IRI!I3","v":0}]
[null,null,null,"Lane:",{"$f":"IRI!G4","v":0},"Test Date:\n(mm/dd/yyyy)",{"$f":"IRI!I4","v":"00:00:00"}]
[null,null,null,"Direction:",{"$f":"IRI!G5","v":0},"Comments:"]
["Appendix B20.b",null,null,null,null,null,null,null,null,null,null,"for Type of Test(F5)","for column H","for column I","payment reduction"]
["Areas of Localized Roughness Summary",null,null,null,null,null,null,null,null,null,null,"Acceptance","yes","SI",40]
["             Station (km)",null,"IRI (m/km)","Length","Excluded Area?","Type of Cons.","Penalty",null,null,null,null,"Verification","no","SII",15]
["Start","End","Right","(m)","Yes or No","SI,SII,or SIII","Assessment $",null,null,null,null,null,null,"SIII"]
["paste here",null,null,{"$f":"ABS(+ROUND(B10*1000,0)-ROUND(A10*1000,0))","v":{"$error":"#VALUE!"}},"no",null,{"$f":"IF(E10=\"yes\",\"Excluded Area\",IF(F10=\"SI\",-$O$7*D10,IF(OR(F10=\"SII\",F10=\"SIII\"),-$O$8*D10)))","v":false}]
[null,null,null,{"$f":"ABS(+ROUND(B11*1000,0)-ROUND(A11*1000,0))","v":0},"no",null,{"$f":"IF(E11=\"yes\",\"Excluded Area\",IF(F11=\"SI\",-$O$7*D11,IF(OR(F11=\"SII\",F11=\"SIII\"),-$O$8*D11)))","v":false}]
[null,null,null,{"$f":"ABS(+ROUND(B12*1000,0)-ROUND(A12*1000,0))","v":0},"no",null,false]
[null,null,null,0,"no",null,false]
[null,null,null,0,"no",null,false]
[null,null,null,0,"no",null,false]
[null,null,null,0,"no",null,false]
[null,null,null,0,"no",null,false]
[null,null,null,0,"no",null,false]
[null,null,null,0,"no",null,false]
[null,null,null,0,"no",null,false]
[null,null,null,0,"no",null,false]
[null,null,null,0,"no",null,false]
[null,null,null,0,"no",null,false]
[null,null,null,0,"no",null,false]
[null,null,null,0,"no",null,false]
[null,null,null,0,"no",null,false]
[null,null,null,0,"no",null,false]
[null,null,null,0,"no",null,false]
[null,null,null,0,"no",null,false]
[null,null,null,0,"no",null,false]
[null,null,null,0,"no",null,false]
[null,null,null,0,"no",null,false]
[null,null,null,0,"no",null,false]
[null,null,null,0,"no",null,false]
[null,null,null,0,"no",null,false]
[null,null,null,0,"no",null,false]
[null,null,null,0,"no",null,false]
[null,null,null,0,"no",null,false]
[null,null,null,0,"no",null,false]
[null,null,null,0,"no",null,false]
[null,null,null,0,"no",null,false]
[null,null,null,0,"no",null,false]
[null,null,null,0,"no",null,false]
[null,null,null,0,"no",null,false]
[null,null,null,0,"no",null,false]
[null,null,null,0,"no",null,false]
[null,null,null,0,"no",null,false]
[null,null,null,0,"no",null,false]
[null,null,null,0,"no",null,false]
[null,null,null,0,"no",null,false]
[null,null,null,0,"no",null,false]
[null,null,null,0,"no",null,false]
[null,null,null,0,"no",null,false]
[null,null,null,0,"no",null,false]
[null,null,null,0,"no",null,false]
[null,null,null,0,"no",null,false]
[null,null,null,0,"no",null,false]
[null,null,null,0,"no",null,false]
[null,null,null,0,"no",null,false]
[null,null,null,0,"no",null,false]
[null,null,null,0,"no",null,false]
[null,null,null,0,"no",null,false]
[null,null,null,0,"no",null,false]
[null,null,null,0,"no",null,false]
[null,null,null,0,"no",null,false]
[null,null,null,0,"no",null,false]
[null,null,null,0,"no",null,false]
[null,null,null,0,"no",null,false]
[null,null,null,0,"no",null,false]
[null,null,null,0,"no",null,false]
[null,null,null,0,"no",null,false]
[null,null,null,0,"no",null,false]
[null,null,null,0,"no",null,false]
[null,null,null,0,"no",null,false]
[null,null,null,0,"no",null,{"$f":"IF(E75=\"yes\",\"Excluded Area\",IF(F75=\"SI\",-$O$7*D75,IF(OR(F75=\"SII\",F75=\"SIII\"),-$O$8*D75)))","v":false}]
[null,null,null,{"$f":"ABS(+ROUND(B76*1000,0)-ROUND(A76*1000,0))","v":0},"no",null,false]
[null,null,null,0,"no",null,false]
[null,null,null,0,"no",null,false]
[null,null,null,0,"no",null,false]
[null,null,null,0,"no",null,false]
[null,null,null,0,"no",null,false]
[null,null,null,0,"no",null,false]
[null,null,null,0,"no",null,false]
[null,null,null,0,"no",null,false]
[null,null,null,0,"no",null,false]
[null,null,null,0,"no",null,false]
[null,null,null,0,"no",null,false]
[null,null,null,0,"no",null,false]
[null,null,null,0,"no",null,false]
[null,null,null,0,"no",null,false]
[null,null,null,0,"no",null,false]
[null,null,null,0,"no",null,false]
[null,null,null,0,"no",null,false]
[null,null,null,0,"no",null,false]
[null,null,null,0,"no",null,false]
[null,null,null,0,"no",null,false]
[null,null,null,0,"no",null,false]
[null,null,null,0,"no",null,false]
[null,null,null,0,"no",null,false]
[null,null,null,0,"no",null,false]
[null,null,null,0,"no",null,false]
[null,null,null,0,"no",null,false]
[null,null,null,0,"no",null,false]
[null,null,null,0,"no",null,false]
[null,null,null,0,"no",null,false]
[null,null,null,0,"no",null,false]
[null,null,null,0,"no",null,false]
[null,null,null,0,"no",null,false]
[null,null,null,0,"no",null,false]
[null,null,null,0,"no",null,false]
[null,null,null,0,"no",null,false]
[null,null,null,0,"no",null,false]
[null,null,null,0,"no",null,false]
[null,null,null,0,"no",null,false]
[null,null,null,0,"no",null,false]
[null,null,null,0,"no",null,false]
[null,null,null,0,"no",null,false]
[null,null,null,0,"no",null,false]
[null,null,null,0,"no",null,false]
[null,null,null,0,"no",null,false]
[null,null,null,0,"no",null,false]
[null,null,null,0,"no",null,false]
[null,null,null,0,"no",null,false]
[null,null,null,0,"no",null,false]
[null,null,null,0,"no",null,false]
[null,null,null,0,"no",null,false]
[null,null,null,0,"no",null,false]
[null,null,null,0,"no",null,false]
[null,null,null,0,"no",null,false]
[null,null,null,0,"no",null,false]
[null,null,null,0,"no",null,false]
[null,null,null,0,"no",null,false]
[null,null,null,0,"no",null,false]
[null,null,null,0,"no",null,false]
[null,null,null,0,"no",null,false]
[null,null,null,0,"no",null,false]
[null,null,null,0,"no",null,false]
[null,null,null,0,"no",null,false]
[null,null,null,0,"no",null,{"$f":"IF(E139=\"yes\",\"Excluded Area\",IF(F139=\"SI\",-$O$7*D139,IF(OR(F139=\"SII\",F139=\"SIII\"),-$O$8*D139)))","v":false}]
[null,null,null,{"$f":"ABS(+ROUND(B140*1000,0)-ROUND(A140*1000,0))","v":0},"no",null,false]
[null,null,null,0,"no",null,false]
[null,null,null,0,"no",null,false]
[null,null,null,0,"no",null,false]
[null,null,null,0,"no",null,false]
[null,null,null,0,"no",null,false]
[null,null,null,0,"no",null,false]
[null,null,null,0,"no",null,false]
[null,null,null,0,"no",null,false]
[null,null,null,0,"no",null,false]
[null,null,null,0,"no",null,false]
[null,null,null,0,"no",null,false]
[null,null,null,0,"no",null,false]
[null,null,null,0,"no",null,false]
[null,null,null,0,"no",null,false]
[null,null,null,0,"no",null,false]
[null,null,null,0,"no",null,false]
[null,null,null,0,"no",null,false]
[null,null,null,0,"no",null,false]
[null,null,null,0,"no",null,false]
[null,null,null,0,"no",null,false]
[null,null,null,0,"no",null,false]
[null,null,null,0,"no",null,false]
[null,null,null,0,"no",null,false]
[null,null,null,0,"no",null,false]
[null,null,null,0,"no",null,false]
[null,null,null,0,"no",null,false]
[null,null,null,0,"no",null,false]
[null,null,null,0,"no",null,false]
[null,null,null,0,"no",null,false]
[null,null,null,0,"no",null,false]
[null,null,null,0,"no",null,false]
[null,null,null,0,"no",null,false]
[null,null,null,0,"no",null,false]
[null,null,null,0,"no",null,false]
[null,null,null,0,"no",null,false]
[null,null,null,0,"no",null,false]
[null,null,null,0,"no",null,false]
[null,null,null,0,"no",null,false]
[null,null,null,0,"no",null,false]
[null,null,null,0,"no",null,false]
[null,null,null,0,"no",null,false]
[null,null,null,0,"no",null,false]
[null,null,null,0,"no",null,false]
[null,null,null,0,"no",null,false]
[null,null,null,0,"no",null,false]
[null,null,null,0,"no",null,false]
[null,null,null,0,"no",null,false]
[null,null,null,0,"no",null,false]
[null,null,null,0,"no",null,false]
[null,null,null,0,"no",null,false]
[null,null,null,0,"no",null,false]
[null,null,null,0,"no",null,false]
[null,null,null,0,"no",null,false]
[null,null,null,0,"no",null,false]
[null,null,null,0,"no",null,false]
[null,null,null,0,"no",null,false]
[null,null,null,0,"no",null,false]
[null,null,null,0,"no",null,false]
[null,null,null,0,"no",null,false]
[null,null,null,0,"no",null,false]
[null,null,null,0,"no",null,false]
[null,null,null,0,"no",null,false]
[null,null,null,0,"no",null,{"$f":"IF(E203=\"yes\",\"Excluded Area\",IF(F203=\"SI\",-$O$7*D203,IF(OR(F203=\"SII\",F203=\"SIII\"),-$O$8*D203)))","v":false}]
[null,null,null,{"$f":"ABS(+ROUND(B204*1000,0)-ROUND(A204*1000,0))","v":0},"no",null,false]
[null,null,null,0,"no",null,false]
[null,null,null,0,"no",null,false]
[null,null,null,0,"no",null,false]
[null,null,null,0,"no",null,false]
[null,null,null,0,"no",null,false]
[null,null,null,0,"no",null,false]
[null,null,null,0,"no",null,false]
[null,null,null,0,"no",null,false]
[null,null,null,0,"no",null,false]
[null,null,null,0,"no",null,false]
[null,null,null,0,"no",null,false]
[null,null,null,0,"no",null,false]
[null,null,null,0,"no",null,false]
[null,null,null,0,"no",null,false]
[null,null,null,0,"no",null,false]
[null,null,null,0,"no",null,false]
[null,null,null,0,"no",null,false]
[null,null,null,0,"no",null,false]
[null,null,null,0,"no",null,false]
[null,null,null,0,"no",null,false]
[null,null,null,0,"no",null,false]
[null,null,null,0,"no",null,false]
[null,null,null,0,"no",null,false]
[null,null,null,0,"no",null,false]
[null,null,null,0,"no",null,false]
[null,null,null,0,"no",null,false]
[null,null,null,0,"no",null,false]
[null,null,null,0,"no",null,false]
[null,null,null,0,"no",null,false]
[null,null,null,0,"no",null,false]
[null,null,null,0,"no",null,false]
[null,null,null,0,"no",null,false]
[null,null,null,0,"no",null,false]
[null,null,null,0,"no",null,false]
[null,null,null,0,"no",null,false]
[null,null,null,0,"no",null,false]
[null,null,null,0,"no",null,false]
[null,null,null,0,"no",null,false]
[null,null,null,0,"no",null,false]
[null,null,null,0,"no",null,false]
[null,null,null,0,"no",null,false]
[null,null,null,0,"no",null,false]
[null,null,null,0,"no",null,false]
[null,null,null,0,"no",null,false]
[null,null,null,0,"no",null,false]
[null,null,null,0,"no",null,false]
[null,null,null,0,"no",null,false]
[null,null,null,0,"no",null,false]
[null,null,null,0,"no",null,false]
[null,null,null,0,"no",null,false]
[null,null,null,0,"no",null,false]
[null,null,null,0,"no",null,false]
[null,null,null,0,"no",null,false]
[null,null,null,0,"no",null,false]
[null,null,null,0,"no",null,false]
[null,null,null,0,"no",null,false]
[null,null,null,0,"no",null,false]
[null,null,null,0,"no",null,false]
[null,null,null,0,"no",null,false]
[null,null,null,0,"no",null,false]
[null,null,null,0,"no",null,false]
[null,null,null,0,"no",null,false]
[null,null,null,0,"no",null,{"$f":"IF(E267=\"yes\",\"Excluded Area\",IF(F267=\"SI\",-$O$7*D267,IF(OR(F267=\"SII\",F267=\"SIII\"),-$O$8*D267)))","v":false}]
[null,null,null,{"$f":"ABS(+ROUND(B268*1000,0)-ROUND(A268*1000,0))","v":0},"no",null,false]
[null,null,null,0,"no",null,false]
[null,null,null,0,"no",null,false]
[null,null,null,0,"no",null,false]
[null,null,null,0,"no",null,false]
[null,null,null,0,"no",null,false]
[null,null,null,0,"no",null,false]
[null,null,null,0,"no",null,false]
[null,null,null,0,"no",null,false]
[null,null,null,0,"no",null,false]
[null,null,null,0,"no",null,false]
[null,null,null,0,"no",null,false]
[null,null,null,0,"no",null,false]
[null,null,null,0,"no",null,false]
[null,null,null,0,"no",null,false]
[null,null,null,0,"no",null,false]
[null,null,null,0,"no",null,false]
[null,null,null,0,"no",null,false]
[null,null,null,0,"no",null,false]
[null,null,null,0,"no",null,false]
[null,null,null,0,"no",null,false]
[null,null,null,0,"no",null,false]
[null,null,null,0,"no",null,false]
[null,null,null,0,"no",null,false]
[null,null,null,0,"no",null,false]
[null,null,null,0,"no",null,false]
[null,null,null,0,"no",null,false]
[null,null,null,0,"no",null,false]
[null,null,null,0,"no",null,false]
[null,null,null,0,"no",null,false]
[null,null,null,0,"no",null,false]
[null,null,null,0,"no",null,false]
[null,null,null,0,"no",null,false]

{"sheet":"IRI Example","index":4,"n_rows":33,"n_cols":10,"rows_kept":33,"cut":false,"hidden":false,"merged":[[31,0,31,8],[32,0,32,9]]}
[null,null,null,null,null,"Contract No:",12378,"Type of Test:","Acceptance"]
[null,null,null,null,null,"Hwy Number:","998","Contractor:","XYZ"]
[null,null,null,null,null,"Control Section:",10,"IP Operator:","John Turner"]
[null,null,null,null,null,"Lane:","R1","Test Date:\n(mm/dd/yyyy)","2014-06-06"]
[null,null,null,null,null,"Direction:","NB"]
[]
["Ride Quality Bonus/Penalty Summary"]
["Appendix B20.a",null,null,null,null,null,null,"Excluded Area?","Type of Cons.","Sublot Payment"]
["Sublot","Station (km)",null,"Length","IRI (m/km)",null,"MIRI","Yes or No","SI,SII,or SIII","Assessment"]
["Number","Start","End","(m)","Left","Right","(m/km)",null,null,"($)"]
[1,-7.363269E-9,0.1,100,0.61318589999999995,0.64036570000000004,{"$f":"ROUND(AVERAGE(E11:F11),2)","v":0.63},"no","SI",30]
[2,0.1,0.2,100,0.51539769999999996,0.47791260000000002,{"$f":"ROUND(AVERAGE(E12:F12),2)","v":0.5},"no","SI",50]
[3,0.2,0.3,100,0.53336779999999995,0.59008740000000004,0.56000000000000005,"no","SI",30]
[4,0.3,0.4,100,0.5784243,0.56784610000000002,0.56999999999999995,"no","SI",30]
[5,0.4,0.50000009999999995,100,1.59,1.61,1.6,"yes","SI",{"$f":"IF(I15=\"SI\",IF(H15=\"yes\",\"Excluded Area\",IF(G15<0.55,50,IF(G15<0.71,30,IF(G15<1.05,0,IF(G15<1.55,(740-740*G15),-500))))),IF(I15=\"SII\",IF(H15=\"yes\",\"Excluded Area\",IF(G15<0.55,50,IF(G15<0.81,30, IF(G15<1.21,0, IF(G15<1.55,(1090-930*G15),-500))))),IF(H15=\"yes\",\"Excluded Area\",IF(G15<0.55,50,IF(G15<0.81,30, IF(G15<1.55,0, IF(G15<=1.85,(740-490*G15),-500)))))))","v":"Excluded Area"}]
[5,0.4,0.5,100,1.4,1.33,1.37,"no","SI",-273.80000000000007]
[6,0.50000009999999995,0.60000010000000004,100,0.59059910000000004,0.70758750000000004,0.65,"no","SI",30]
[7,0.60000010000000004,0.7,100,0.56998879999999996,0.6784173,0.62,"no","SI",30]
[8,0.7,0.80000009999999999,100,0.73095639999999995,0.75931009999999999,0.75,"no","SI",0]
[9,0.80000009999999999,0.90000009999999997,100,0.58847360000000004,0.59295949999999997,0.59,"no","SI",30]
[10,0.90000009999999997,1,100,0.54473510000000003,0.5961978,0.56999999999999995,"no","SI",30]
[11,1,1.1000000000000001,100,0.62738709999999998,0.69005019999999995,0.66,"no","SI",30]
[12,1.1000000000000001,1.2,100,0.63925350000000003,0.75295849999999998,0.7,"no","SI",30]
[13,1.2,1.3,100,0.68059130000000001,0.68990370000000001,0.69,"no","SI",30]
[14,1.3,1.4,100,0.6792395,0.65139020000000003,0.67,"no","SI",30]
[15,1.4,1.5,100,0.65994580000000003,0.67216929999999997,0.67,"no","SI",30]
[16,1.5,1.6,100,0.67010289999999995,0.67244979999999999,0.67,"no","SI",30]
[17,1.6,1.7,100,0.58982780000000001,0.58590100000000001,0.59,"no","SI",30]
[18,1.7,1.746,46,1.23,1.27,1.25,"yes","SI","Excluded Area"]
[19,1.746,1.8460000000000001,100,0.72107279999999996,0.73201450000000001,0.73,"no","SI",0]
[20,1.8460000000000001,1.88,34.473570000000002,1.1000000000000001,1.06,1.08,"no","SI",0]
["Total Assessment",null,null,null,null,null,null,null,null,{"$f":"SUM(J11:J31)","v":196.19999999999993}]
["Comments: Sublot number 5 from km 0.400 to km 0.500 was repaired and retested.  Sublot 18 from km 1.700 to 1.746 was excluded for railway tracks."]

{"sheet":"ALR Example","index":5,"n_rows":14,"n_cols":7,"rows_kept":14,"cut":false,"hidden":false,"merged":[[12,0,12,5],[13,0,13,6]]}
[null,null,null,"Contract No:",12498,"Type of Test:","Acceptance"]
[null,null,null,"Hwy Number","877","Contractor:","ABC"]
[null,null,null,"Control Section",16,"IP Operator:","John Turner"]
[null,null,null,"Lane:","R1","Test Date:\n(mm/dd/yyyy)","2014-06-06"]
[null,null,null,"Direction:","NB"]
["Appendix B20.b"]
["Areas of Localized Roughness Summary"]
["             Station (km)",null,"IRI (m/km)","Length","Excluded Area?","Type of Cons.","Penalty"]
["Start","End","Right","(m)","Yes or No","SI,SII,or SIII","Assessment $"]
[27.563870000000001,27.56671,2.7102620000000002,{"$f":"+ROUND(B10*1000,0)-ROUND(A10*1000,0)","v":3},"no","SI",-120]
[27.584669999999999,27.593879999999999,3.6405539999999998,{"$f":"+ROUND(B11*1000,0)-ROUND(A11*1000,0)","v":9},"yes","SI",{"$f":"IF(E11=\"yes\",\"Excluded Area\",IF(F11=\"SI\",-$O$7*D11,IF(OR(F11=\"SII\",F11=\"SIII\"),-$O$8*D11)))","v":"Excluded Area"}]
[27.685449999999999,27.692419999999998,3.1817549999999999,7,"no","SI",-280]
["Total Assessment",null,null,null,null,null,{"$f":"SUM(G10:G12)","v":-400}]
["Comments: Excluded area beginning at km 27.585 was due to railway tracks.  Other Areas of Localized Roughness were judged not to require repair as ride quality was not excessively effected."]